Workbook

Sheet Январь2013
B2: Клиенты Участников торгов Фондовой биржи ММВБ
B3: 2013-01-01
B6: Динамика количества клиентов за | C6: =B3 -> 2013-01-01
B10: Количество зарегистрированных клиентов в Системе торгов (по состоянию на последний день месяца): | H10: Таблица 1
B11: Группы клиентов | E11: 2012-12-30 | F11: =EDATE(E11,1) -> 2013-01-30 | G11: Изменение (ед.) | H11: Изменение (%)
B12: Физические лица | E12: 992397 | F12: 1032925 | G12: =F12-E12 -> 40528 | H12: =F12/E12-1 -> 0.04083849508
B13: Юридические лица | E13: 34954 | F13: 35320 | G13: =F13-E13 -> 366 | H13: =F13/E13-1 -> 0.01047090462
B14: Нерезиденты | E14: 12200 | F14: 12481 | G14: 281 | H14: 0.02303278689
B15: Нерезиденты - физические лица | E15: 2163 | F15: 2250 | G15: 87 | H15: 0.04022191401
B16: Нерезиденты - юридические лица | E16: 10037 | F16: 10231 | G16: 194 | H16: 0.01932848461
B17: Клиенты, передавшие свои средства в ДУ | E17: 15799 | F17: 17206 | G17: 1407 | H17: 0.08905626938
B18: Всего | E18: 1055350 | F18: 1097932 | G18: 42582 | H18: 0.04034869948
B21: Количество уникальных клиентов в Системе торгов (по состоянию на последний день месяца): | H21: Таблица 2
B22: Группы клиентов | E22: =E11 -> 2012-12-30 | F22: =F11 -> 2013-01-30 | G22: Изменение (ед.) | H22: Изменение (%)
B23: Физические лица | E23: 805549 | F23: 833454 | G23: =F23-E23 -> 27905 | H23: =F23/E23-1 -> 0.03464097156
B24: Юридические лица | E24: 17821 | F24: 18015 | G24: =F24-E24 -> 194 | H24: =F24/E24-1 -> 0.01088603333
B25: Нерезиденты | E25: 5876 | F25: 6049 | G25: 173 | H25: 0.02944179714
B26: Нерезиденты - физические лица | E26: 2073 | F26: 2153 | G26: 80 | H26: 0.03859141341
B27: Нерезиденты - юридические лица | E27: 3803 | F27: 3896 | G27: 93 | H27: 0.02445437812
B28: Клиенты, передавшие свои средства в ДУ | E28: 5261 | F28: 5288 | G28: 27 | H28: 0.005132104163
B29: Всего | E29: 834507 | F29: 862806 | G29: 28299 | H29: 0.03391103969
B32: Количество активных клиентов в Системе торгов (совершивших в течение месяца хотя бы одну сделку): | H32: Таблица 3
B33: Группы клиентов | E33: =EDATE(C6,-1) -> 2012-12-01 | F33: =EDATE(E33,1) -> 2013-01-01 | G33: Изменение (ед.) | H33: Изменение (%)
B34: Физические лица | E34: 70302 | F34: 76073 | G34: =F34-E34 -> 5771 | H34: =F34/E34-1 -> 0.08208870302
B35: Юридические лица | E35: 1613 | F35: 1457 | G35: =F35-E35 -> -156 | H35: =F35/E35-1 -> -0.09671419715
B36: Нерезиденты | E36: 666 | F36: 638 | G36: -28 | H36: -0.04204204204
B37: Нерезиденты - физические лица | E37: 160 | F37: 171 | G37: 11 | H37: 0.06875
B38: Нерезиденты - юридические лица | E38: 506 | F38: 467 | G38: -39 | H38: -0.07707509881
B39: Клиенты, передавшие свои средства в ДУ | E39: 944 | F39: 950 | G39: 6 | H39: 0.006355932203
B40: Всего | E40: 73525 | F40: 79118 | G40: 5593 | H40: 0.07606936416
B44: Изменение количества уникальных клиентов - ретроспективные данные
B48: Количество уникальных клиентов в Системе торгов (по состоянию на последний день месяца) (ежегодная статистика): | H48: Таблица 1
B49: Группы клиентов | E49: 2009-12-31 | F49: 2010-12-31 | G49: 2011-12-31 | H49: 2012-12-31
B50: Физические лица | E50: 671475 | F50: 714295 | G50: 772175 | H50: 805549
B51: Юридические лица | E51: 16364 | F51: 17170 | G51: 16850 | H51: 17821
B52: Нерезиденты | E52: 3851 | F52: 4295 | G52: 5058 | H52: 5876
B53: Клиенты, передавшие свои средства в ДУ | E53: 4717 | F53: 5348 | G53: 5242 | H53: 5261
B54: Всего | E54: 696407 | F54: 741108 | G54: 799325 | H54: 834507
B82: Количество уникальных клиентов в Системе торгов (по состоянию на последний день месяца) (за последние 6 месяцев): | H82: Таблица 2
B83: Группы клиентов | C83: =EDATE(D83,-1) -> 2012-08-30 | D83: =EDATE(E83,-1) -> 2012-09-30 | E83: =EDATE(F83,-1) -> 2012-10-30 | F83: =EDATE(G83,-1) -> 2012-11-30 | G83: =EDATE(H83,-1) -> 2012-12-30 | H83: =EDATE(E11,1) -> 2013-01-30
B84: Физические лица | C84: 791512 | D84: 796839 | E84: 804740 | F84: 815485 | G84: 805549 | H84: 833454
B85: Юридические лица | C85: 17475 | D85: 17573 | E85: 17648 | F85: 17752 | G85: 17821 | H85: 18015
B86: Нерезиденты | C86: 5636 | D86: 5703 | E86: 5781 | F86: 5845 | G86: 5876 | H86: 6049
B87: Клиенты, передавшие свои средства в ДУ | C87: 5250 | D87: 5246 | E87: 5247 | F87: 5266 | G87: 5261 | H87: 5288
B88: Всего | C88: 819873 | D88: 825361 | E88: 833416 | F88: 844348 | G88: 834507 | H88: 862806
B124: Дополнительные показатели за | C124: 2013-01-31
H127: Таблица 1
B128: Участники торгов | G128: Абсолютные показатели
B129: Количество Участников торгов, имеющих зарегистрированных клиентов | G129: 597
B130: Количество Участников торгов, имеющих уникальных клиентов | G130: 597
B131: Количество Участников торгов, имеющих активных клиентов | G131: 465
B135: Списки ведущих операторов фондового рынка - клиенты Участников торгов за | F135: =C6 -> 2013-01-01
B138: Ведущие операторы рынка – число зарегистрированных клиентов | H138: Таблица 1
B139: Наименование Участника торгов | G139: Количество клиентов
B140: ВТБ 24 (ЗАО) | G140: 188901
B141: ОАО «Сбербанк России» | G141: 173534
B142: ЗАО «ФИНАМ» | G142: 118715
B143: ФГ БКС | G143: 105172
B144: ОАО «АЛЬФА-БАНК» | G144: 59758
B145: ООО «АТОН» | G145: 42295
B146: ФК «ОТКРЫТИЕ» | G146: 34124
B147: ГК «АЛОР» | G147: 32322
B148: КИТ Финанс (ООО) | G148: 19667
B149: ООО «Инвестиционная палата» | G149: 19334
B152: Ведущие операторы рынка – число активных клиентов | H152: Таблица 2
B153: Наименование Участника торгов | G153: Количество клиентов
B154: ОАО «Сбербанк России» | G154: 14332
B155: ЗАО «ФИНАМ» | G155: 13779
B156: ФГ БКС | G156: 11911
B157: ВТБ 24 (ЗАО) | G157: 7730
B158: ОАО «АЛЬФА-БАНК» | G158: 4674
B159: ООО «АТОН» | G159: 4423
B160: ФК «ОТКРЫТИЕ» | G160: 3417
B161: ГК «АЛОР» | G161: 2272
B162: ООО «НЭТТРЭЙДЕР» | G162: 1820
B163: КИТ Финанс (ООО) | G163: 1751
B166: Ведущие операторы рынка – объем клиентских операций | H166: Таблица 3
B167: Наименование Участника торгов | G167: Торговый оборот, руб.
B168: ФК «ОТКРЫТИЕ» | G168: 7.326027921e+11
B169: ЗАО «Сбербанк КИБ» | G169: 5.160504349e+11
B170: ИК «Ренессанс Капитал» | G170: 4.441864186e+11
B171: ФГ БКС | G171: 4.071009619e+11
B172: ЗАО «ФИНАМ» | G172: 3.411853388e+11
B173: ОАО «Промсвязьбанк» | G173: 3.144225521e+11
B174: ООО «АТОН» | G174: 2.77881461e+11
B175: ООО «ИК ВЕЛЕС Капитал» | G175: 2.382121972e+11
B176: ООО «БК РЕГИОН» | G176: 2.099126237e+11
B177: ГК «АЛОР» | G177: 1.574250351e+11

Sheet Февраль2013
B2: Клиенты Участников торгов Фондовой биржи ММВБ
B3: 2013-02-01
B6: Динамика количества клиентов за | C6: =B3 -> 2013-02-01
B10: Количество зарегистрированных клиентов в Системе торгов (по состоянию на последний день месяца): | H10: Таблица 1
B11: Группы клиентов | E11: 2013-01-31 | F11: =EDATE(E11,1) -> 2013-02-28 | G11: Изменение (ед.) | H11: Изменение (%)
B12: Физические лица | E12: 1032925 | F12: 1028377 | G12: =F12-E12 -> -4548 | H12: =F12/E12-1 -> -0.00440303023
B13: Юридические лица | E13: 35320 | F13: 34856 | G13: -464 | H13: -0.01313703284
B14: Нерезиденты | E14: 12481 | F14: 12432 | G14: -49 | H14: -0.003925967471
B15: Нерезиденты - физические лица | E15: 2250 | F15: 2244 | G15: -6 | H15: -0.002666666667
B16: Нерезиденты - юридические лица | E16: 10231 | F16: 10188 | G16: -43 | H16: -0.004202912716
B17: Клиенты, передавшие свои средства в ДУ | E17: 17206 | F17: 14069 | G17: -3137 | H17: -0.1823201209
B18: Всего | E18: 1097932 | F18: 1089734 | G18: -8198 | H18: -0.007466764791
B21: Количество уникальных клиентов в Системе торгов (по состоянию на последний день месяца): | H21: Таблица 2
B22: Группы клиентов | E22: =E11 -> 2013-01-31 | F22: =F11 -> 2013-02-28 | G22: Изменение (ед.) | H22: Изменение (%)
B23: Физические лица | E23: 833454 | F23: 830471 | G23: =F23-E23 -> -2983 | H23: =F23/E23-1 -> -0.003579081749
B24: Юридические лица | E24: 18015 | F24: 17820 | G24: =F24-E24 -> -195 | H24: =F24/E24-1 -> -0.01082431307
B25: Нерезиденты | E25: 6049 | F25: 6029 | G25: -20 | H25: -0.003306331625
B26: Нерезиденты - физические лица | E26: 2153 | F26: 2147 | G26: -6 | H26: -0.002786809104
B27: Нерезиденты - юридические лица | E27: 3896 | F27: 3882 | G27: -14 | H27: -0.003593429158
B28: Клиенты, передавшие свои средства в ДУ | E28: 5288 | F28: 5099 | G28: -189 | H28: -0.03574130106
B29: Всего | E29: 862806 | F29: 859419 | G29: -3387 | H29: -0.0039255638
B32: Количество активных клиентов в Системе торгов (совершивших в течение месяца хотя бы одну сделку): | H32: Таблица 3
B33: Группы клиентов | E33: =EDATE(C6,-1) -> 2013-01-01 | F33: =EDATE(E33,1) -> 2013-02-01 | G33: Изменение (ед.) | H33: Изменение (%)
B34: Физические лица | E34: 76073 | F34: 69676 | G34: =F34-E34 -> -6397 | H34: =F34/E34-1 -> -0.0840902817
B35: Юридические лица | E35: 1457 | F35: 1506 | G35: =F35-E35 -> 49 | H35: =F35/E35-1 -> 0.03363074811
B36: Нерезиденты | E36: 638 | F36: 612 | G36: -26 | H36: -0.0407523511
B37: Нерезиденты - физические лица | E37: 171 | F37: 158 | G37: -13 | H37: -0.07602339181
B38: Нерезиденты - юридические лица | E38: 467 | F38: 454 | G38: -13 | H38: -0.0278372591
B39: Клиенты, передавшие свои средства в ДУ | E39: 950 | F39: 896 | G39: -54 | H39: -0.05684210526
B40: Всего | E40: 79118 | F40: 72690 | G40: -6428 | H40: -0.08124573422
B44: Изменение количества уникальных клиентов - ретроспективные данные
B48: Количество уникальных клиентов в Системе торгов (по состоянию на последний день месяца) (ежегодная статистика): | H48: Таблица 1
B49: Группы клиентов | E49: 2009-12-31 | F49: 2010-12-31 | G49: 2011-12-31 | H49: 2012-12-31
B50: Физические лица | E50: 671475 | F50: 714295 | G50: 772175 | H50: 805549
B51: Юридические лица | E51: 16364 | F51: 17170 | G51: 16850 | H51: 17821
B52: Нерезиденты | E52: 3851 | F52: 4295 | G52: 5058 | H52: 5876
B53: Клиенты, передавшие свои средства в ДУ | E53: 4717 | F53: 5348 | G53: 5242 | H53: 5261
B54: Всего | E54: 696407 | F54: 741108 | G54: 799325 | H54: 834507
B82: Количество уникальных клиентов в Системе торгов (по состоянию на последний день месяца) (за последние 6 месяцев): | H82: Таблица 2
B83: Группы клиентов | C83: =EDATE(D83,-1) -> 2012-09-28 | D83: =EDATE(E83,-1) -> 2012-10-28 | E83: =EDATE(F83,-1) -> 2012-11-28 | F83: =EDATE(G83,-1) -> 2012-12-28 | G83: =EDATE(H83,-1) -> 2013-01-28 | H83: =EDATE(E11,1) -> 2013-02-28
B84: Физические лица | C84: 796839 | D84: 804740 | E84: 815485 | F84: 805549 | G84: 833454 | H84: 830471
B85: Юридические лица | C85: 17573 | D85: 17648 | E85: 17752 | F85: 17821 | G85: 18015 | H85: 17820
B86: Нерезиденты | C86: 5703 | D86: 5781 | E86: 5845 | F86: 5876 | G86: 6049 | H86: 6029
B87: Клиенты, передавшие свои средства в ДУ | C87: 5246 | D87: 5247 | E87: 5266 | F87: 5261 | G87: 5288 | H87: 5099
B88: Всего | C88: 825361 | D88: 833416 | E88: 844348 | F88: 834507 | G88: 862806 | H88: 859419
B124: Дополнительные показатели за | C124: 2013-02-28
H127: Таблица 1
B128: Участники торгов | G128: Абсолютные показатели
B129: Количество Участников торгов, имеющих зарегистрированных клиентов | G129: 746
B130: Количество Участников торгов, имеющих уникальных клиентов | G130: 746
B131: Количество Участников торгов, имеющих активных клиентов | G131: 469
B135: Списки ведущих операторов фондового рынка - клиенты Участников торгов за | F135: =C6 -> 2013-02-01
B138: Ведущие операторы рынка – число зарегистрированных клиентов | H138: Таблица 1
B139: Наименование Участника торгов | G139: Количество клиентов
B140: ВТБ 24 (ЗАО) | G140: 189880
B141: ОАО «Сбербанк России» | G141: 174708
B142: ЗАО «ФИНАМ» | G142: 119189
B143: ФГ БКС | G143: 105823
B144: ОАО «АЛЬФА-БАНК» | G144: 59993
B145: ООО «АТОН» | G145: 42469
B146: ФК «ОТКРЫТИЕ» | G146: 34676
B147: ГК «АЛОР» | G147: 28619
B148: КИТ Финанс (ООО) | G148: 19721
B149: ООО «Инвестиционная палата» | G149: 19361
B152: Ведущие операторы рынка – число активных клиентов | H152: Таблица 2
B153: Наименование Участника торгов | G153: Количество клиентов
B154: ЗАО «ФИНАМ» | G154: 12296
B155: ОАО «Сбербанк России» | G155: 11589
B156: ФГ БКС | G156: 10858
B157: ВТБ 24 (ЗАО) | G157: 7308
B158: ОАО «АЛЬФА-БАНК» | G158: 4624
B159: ООО «АТОН» | G159: 4351
B160: ФК «ОТКРЫТИЕ» | G160: 3289
B161: ГК «АЛОР» | G161: 2209
B162: ООО «НЭТТРЭЙДЕР» | G162: 1694
B163: КИТ Финанс (ООО) | G163: 1610
B166: Ведущие операторы рынка – объем клиентских операций | H166: Таблица 3
B167: Наименование Участника торгов | G167: Торговый оборот, руб.
B168: ФК «ОТКРЫТИЕ» | G168: 771255384672
B169: ЗАО «Сбербанк КИБ» | G169: 620753066363
B170: ИК «Ренессанс Капитал» | G170: 524066827392
B171: ФГ БКС | G171: 489905417620
B172: ЗАО «ФИНАМ» | G172: 378880845376
B173: ОАО «Промсвязьбанк» | G173: 329531383951
B174: ООО «АТОН» | G174: 276347174785
B175: ООО «РОНИН» | G175: 251397097621
B176: ООО «ИК ВЕЛЕС Капитал» | G176: 210407476892
B177: ООО «БК РЕГИОН» | G177: 183093368593

Sheet Март2013
B2: Клиенты Участников торгов Фондовой биржи ММВБ
B3: 2013-03-01
B6: Динамика количества клиентов за | C6: =B3 -> 2013-03-01
B10: Количество зарегистрированных клиентов в Системе торгов (по состоянию на последний день месяца): | H10: Таблица 1
B11: Группы клиентов | E11: 2013-02-28 | F11: =EDATE(E11,1) -> 2013-03-28 | G11: Изменение (ед.) | H11: Изменение (%)
B12: Физические лица | E12: 1028377 | F12: 1034525 | G12: =F12-E12 -> 6148 | H12: =F12/E12-1 -> 0.005978352297
B13: Юридические лица | E13: 34856 | F13: 34949 | G13: 93 | H13: 0.002668120266
B14: Нерезиденты | E14: 12432 | F14: 12564 | G14: 132 | H14: 0.01061776062
B15: Нерезиденты - физические лица | E15: 2244 | F15: 2300 | G15: 56 | H15: 0.02495543672
B16: Нерезиденты - юридические лица | E16: 10188 | F16: 10264 | G16: 76 | H16: 0.007459756576
B17: Клиенты, передавшие свои средства в ДУ | E17: 14069 | F17: 10644 | G17: -3425 | H17: -0.2434430308
B18: Всего | E18: 1089734 | F18: 1092682 | G18: 2948 | H18: 0.002705247336
B21: Количество уникальных клиентов в Системе торгов (по состоянию на последний день месяца): | H21: Таблица 2
B22: Группы клиентов | E22: =E11 -> 2013-02-28 | F22: =F11 -> 2013-03-28 | G22: Изменение (ед.) | H22: Изменение (%)
B23: Физические лица | E23: 830471 | F23: 871195 | G23: =F23-E23 -> 40724 | H23: =F23/E23-1 -> 0.04903723309
B24: Юридические лица | E24: 17820 | F24: 18896 | G24: =F24-E24 -> 1076 | H24: =F24/E24-1 -> 0.06038159371
B25: Нерезиденты | E25: 6029 | F25: 6333 | G25: =F25-E25 -> 304 | H25: 0.05042295571
B26: Нерезиденты - физические лица | E26: 2147 | F26: 2255 | G26: 108 | H26: 0.05030274802
B27: Нерезиденты - юридические лица | E27: 3882 | F27: 4078 | G27: 196 | H27: 0.05048943843
B28: Клиенты, передавшие свои средства в ДУ | E28: 5099 | F28: 5433 | G28: 334 | H28: 0.06550303981
B29: Всего | E29: 859419 | F29: 901857 | G29: 42438 | H29: 0.04937987175
B32: Количество активных клиентов в Системе торгов (совершивших в течение месяца хотя бы одну сделку): | H32: Таблица 3
B33: Группы клиентов | E33: =EDATE(C6,-1) -> 2013-02-01 | F33: =EDATE(E33,1) -> 2013-03-01 | G33: Изменение (ед.) | H33: Изменение (%)
B34: Физические лица | E34: 69676 | F34: 68190 | G34: =F34-E34 -> -1486 | H34: =F34/E34-1 -> -0.0213272863
B35: Юридические лица | E35: 1506 | F35: 1476 | G35: -30 | H35: =F35/E35-1 -> -0.01992031873
B36: Нерезиденты | E36: 612 | F36: 622 | G36: 10 | H36: 0.01633986928
B37: Нерезиденты - физические лица | E37: 158 | F37: 167 | G37: 9 | H37: 0.05696202532
B38: Нерезиденты - юридические лица | E38: 454 | F38: 455 | G38: 1 | H38: 0.002202643172
B39: Клиенты, передавшие свои средства в ДУ | E39: 896 | F39: 918 | G39: 22 | H39: 0.02455357143
B40: Всего | E40: 72690 | F40: 71206 | G40: -1484 | H40: -0.02041546292
B44: Изменение количества уникальных клиентов - ретроспективные данные
B48: Количество уникальных клиентов в Системе торгов (по состоянию на последний день месяца) (ежегодная статистика): | H48: Таблица 1
B49: Группы клиентов | E49: 2009-12-31 | F49: 2010-12-31 | G49: 2011-12-31 | H49: 2012-12-31
B50: Физические лица | E50: 671475 | F50: 714295 | G50: 772175 | H50: 805549
B51: Юридические лица | E51: 16364 | F51: 17170 | G51: 16850 | H51: 17821
B52: Нерезиденты | E52: 3851 | F52: 4295 | G52: 5058 | H52: 5876
B53: Клиенты, передавшие свои средства в ДУ | E53: 4717 | F53: 5348 | G53: 5242 | H53: 5261
B54: Всего | E54: 696407 | F54: 741108 | G54: 799325 | H54: 834507
B82: Количество уникальных клиентов в Системе торгов (по состоянию на последний день месяца) (за последние 6 месяцев): | H82: Таблица 2
B83: Группы клиентов | C83: =EDATE(D83,-1) -> 2012-10-28 | D83: =EDATE(E83,-1) -> 2012-11-28 | E83: =EDATE(F83,-1) -> 2012-12-28 | F83: =EDATE(G83,-1) -> 2013-01-28 | G83: =EDATE(H83,-1) -> 2013-02-28 | H83: =EDATE(E11,1) -> 2013-03-28
B84: Физические лица | C84: 804740 | D84: 815485 | E84: 805549 | F84: 833454 | G84: 830471 | H84: 871195
B85: Юридические лица | C85: 17648 | D85: 17752 | E85: 17821 | F85: 18015 | G85: 17820 | H85: 18896
B86: Нерезиденты | C86: 5781 | D86: 5845 | E86: 5876 | F86: 6049 | G86: 6029 | H86: 6333
B87: Клиенты, передавшие свои средства в ДУ | C87: 5247 | D87: 5266 | E87: 5261 | F87: 5288 | G87: 5099 | H87: 5433
B88: Всего | C88: 833416 | D88: 844348 | E88: 834507 | F88: 862806 | G88: 859419 | H88: 901857
B124: Дополнительные показатели за | C124: 2013-03-30
H127: Таблица 1
B128: Участники торгов | G128: Абсолютные показатели
B129: Количество Участников торгов, имеющих зарегистрированных клиентов | G129: 748
B130: Количество Участников торгов, имеющих уникальных клиентов | G130: 748
B131: Количество Участников торгов, имеющих активных клиентов | G131: 470
B135: Списки ведущих операторов фондового рынка - клиенты Участников торгов за | F135: =C6 -> 2013-03-01
B138: Ведущие операторы рынка – число зарегистрированных клиентов | H138: Таблица 1
B139: Наименование Участника торгов | G139: Количество клиентов
B140: ВТБ 24 (ЗАО) | G140: 191194
B141: ОАО «Сбербанк России» | G141: 175645
B142: ЗАО «ФИНАМ» | G142: 119642
B143: ФГ БКС | G143: 106282
B144: ОАО «АЛЬФА-БАНК» | G144: 60087
B145: ООО «АТОН» | G145: 42587
B146: ОАО «Брокерский дом «ОТКРЫТИЕ» | G146: 35215
B147: ГК «АЛОР» | G147: 28745
B148: КИТ Финанс (ООО) | G148: 19765
B149: ООО «Инвестиционная палата» | G149: 19409
B152: Ведущие операторы рынка – число активных клиентов | H152: Таблица 2
B153: Наименование Участника торгов | G153: Количество клиентов
B154: ЗАО «ФИНАМ» | G154: 12469
B155: ОАО «Сбербанк России» | G155: 11145
B156: ФГ БКС | G156: 10523
B157: ВТБ 24 (ЗАО) | G157: 7264
B158: ОАО «АЛЬФА-БАНК» | G158: 4469
B159: ООО «АТОН» | G159: 4134
B160: ОАО «Брокерский дом «ОТКРЫТИЕ» | G160: 3376
B161: ГК «АЛОР» | G161: 2090
B162: ЗАО «Сбербанк КИБ» | G162: 1631
B163: КИТ Финанс (ООО) | G163: 1611
B166: Ведущие операторы рынка – объем клиентских операций | H166: Таблица 3
B167: Наименование Участника торгов | G167: Торговый оборот, руб.
B168: ОАО «Брокерский дом «ОТКРЫТИЕ» | G168: 788707102819
B169: ФГ БКС | G169: 528451198281
B170: ИК «Ренессанс Капитал» | G170: 525740670689
B171: ЗАО «Сбербанк КИБ» | G171: 4.425473306e+11
B172: ЗАО «ФИНАМ» | G172: 352787466819
B173: ОАО «Промсвязьбанк» | G173: 343477885610
B174: ООО «АТОН» | G174: 277461478181
B175: ООО «БК РЕГИОН» | G175: 211169711707
B176: ООО «РОНИН» | G176: 207824560491
B177: ООО «ИК ВЕЛЕС Капитал» | G177: 195952366581

Sheet Апрель2013
B2: Клиенты Участников торгов Фондовой биржи ММВБ
B3: 2013-04-01
B6: Динамика количества клиентов за | C6: =B3 -> 2013-04-01
B10: Количество зарегистрированных клиентов в Системе торгов (по состоянию на последний день месяца): | H10: Таблица 1
B11: Группы клиентов | E11: 2013-03-31 | F11: =EDATE(E11,1) -> 2013-04-30 | G11: Изменение (ед.) | H11: Изменение (%)
B12: Физические лица | E12: 1034525 | F12: 1037702 | G12: =F12-E12 -> 3177 | H12: =F12/E12-1 -> 0.003070974602
B13: Юридические лица | E13: 34949 | F13: 34957 | G13: =F13-E13 -> 8 | H13: =F13/E13-1 -> 0.0002289049758
B14: Нерезиденты | E14: 12564 | F14: 12590 | G14: 26 | H14: 0.002069404648
B15: Нерезиденты - физические лица | E15: 2300 | F15: 2336 | G15: 36 | H15: 0.01565217391
B16: Нерезиденты - юридические лица | E16: 10264 | F16: 10254 | G16: -10 | H16: -0.0009742790335
B17: Клиенты, передавшие свои средства в ДУ | E17: 10644 | F17: 11746 | G17: 1102 | H17: 0.1035325066
B18: Всего | E18: 1092682 | F18: 1096995 | G18: 4313 | H18: 0.003947168527
B21: Количество уникальных клиентов в Системе торгов (по состоянию на последний день месяца): | H21: Таблица 2
B22: Группы клиентов | E22: =E11 -> 2013-03-31 | F22: =F11 -> 2013-04-30 | G22: Изменение (ед.) | H22: Изменение (%)
B23: Физические лица | E23: 871195 | F23: 875529 | G23: =F23-E23 -> 4334 | H23: =F23/E23-1 -> 0.004974776026
B24: Юридические лица | E24: 18896 | F24: 18984 | G24: =F24-E24 -> 88 | H24: =F24/E24-1 -> 0.004657070279
B25: Нерезиденты | E25: 6333 | F25: 6397 | G25: 64 | H25: 0.01010579504
B26: Нерезиденты - физические лица | E26: 2255 | F26: 2292 | G26: 37 | H26: 0.01640798226
B27: Нерезиденты - юридические лица | E27: 4078 | F27: 4105 | G27: 27 | H27: 0.006620892594
B28: Клиенты, передавшие свои средства в ДУ | E28: 5433 | F28: 5262 | G28: -171 | H28: -0.03147432358
B29: Всего | E29: 901857 | F29: 906172 | G29: 4315 | H29: 0.004784572277
B32: Количество активных клиентов в Системе торгов (совершивших в течение месяца хотя бы одну сделку): | H32: Таблица 3
B33: Группы клиентов | E33: =EDATE(C6,-1) -> 2013-03-01 | F33: =EDATE(E33,1) -> 2013-04-01 | G33: Изменение (ед.) | H33: Изменение (%)
B34: Физические лица | E34: 68190 | F34: 67871 | G34: =F34-E34 -> -319 | H34: =F34/E34-1 -> -0.004678105294
B35: Юридические лица | E35: 1476 | F35: 1508 | G35: =F35-E35 -> 32 | H35: =F35/E35-1 -> 0.0216802168
B36: Нерезиденты | E36: 622 | F36: 685 | G36: 63 | H36: 0.1012861736
B37: Нерезиденты - физические лица | E37: 167 | F37: 198 | G37: 31 | H37: 0.1856287425
B38: Нерезиденты - юридические лица | E38: 455 | F38: 487 | G38: 32 | H38: 0.07032967033
B39: Клиенты, передавшие свои средства в ДУ | E39: 918 | F39: 903 | G39: -15 | H39: -0.01633986928
B40: Всего | E40: 71206 | F40: 70967 | G40: -239 | H40: -0.003356458725
B44: Изменение количества уникальных клиентов - ретроспективные данные
B48: Количество уникальных клиентов в Системе торгов (по состоянию на последний день месяца) (ежегодная статистика): | H48: Таблица 1
B49: Группы клиентов | E49: 2009-12-31 | F49: 2010-12-31 | G49: 2011-12-31 | H49: 2012-12-31
B50: Физические лица | E50: 671475 | F50: 714295 | G50: 772175 | H50: 805549
B51: Юридические лица | E51: 16364 | F51: 17170 | G51: 16850 | H51: 17821
B52: Нерезиденты | E52: 3851 | F52: 4295 | G52: 5058 | H52: 5876
B53: Клиенты, передавшие свои средства в ДУ | E53: 4717 | F53: 5348 | G53: 5242 | H53: 5261
B54: Всего | E54: 696407 | F54: 741108 | G54: 799325 | H54: 834507
B82: Количество уникальных клиентов в Системе торгов (по состоянию на последний день месяца) (за последние 6 месяцев): | H82: Таблица 2
B83: Группы клиентов | C83: =EDATE(D83,-1) -> 2012-11-28 | D83: =EDATE(E83,-1) -> 2012-12-28 | E83: =EDATE(F83,-1) -> 2013-01-28 | F83: =EDATE(G83,-1) -> 2013-02-28 | G83: =EDATE(H83,-1) -> 2013-03-30 | H83: =EDATE(E11,1) -> 2013-04-30
B84: Физические лица | C84: 815485 | D84: 805549 | E84: 833454 | F84: 830471 | G84: 871195 | H84: 875529
B85: Юридические лица | C85: 17752 | D85: 17821 | E85: 18015 | F85: 17820 | G85: 18896 | H85: 18984
B86: Нерезиденты | C86: 5845 | D86: 5876 | E86: 6049 | F86: 6029 | G86: 6333 | H86: 6397
B87: Клиенты, передавшие свои средства в ДУ | C87: 5266 | D87: 5261 | E87: 5288 | F87: 5099 | G87: 5433 | H87: 5262
B88: Всего | C88: 844348 | D88: 834507 | E88: 862806 | F88: 859419 | G88: 901857 | H88: 906172
B124: Дополнительные показатели за | C124: 2013-04-30
H127: Таблица 1
B128: Участники торгов | G128: Абсолютные показатели
B129: Количество Участников торгов, имеющих зарегистрированных клиентов | G129: 750
B130: Количество Участников торгов, имеющих уникальных клиентов | G130: 750
B131: Количество Участников торгов, имеющих активных клиентов | G131: 471
B135: Списки ведущих операторов фондового рынка - клиенты Участников торгов за | F135: =C6 -> 2013-04-01
B138: Ведущие операторы рынка – число зарегистрированных клиентов | H138: Таблица 1
B139: Наименование Участника торгов | G139: Количество клиентов
B140: ВТБ 24 (ЗАО) | G140: 192226
B141: ОАО «Сбербанк России» | G141: 175451
B142: ЗАО «ФИНАМ» | G142: 120205
B143: ФГ БКС | G143: 106869
B144: ОАО «АЛЬФА-БАНК» | G144: 60049
B145: ООО «АТОН» | G145: 42717
B146: ОАО "Брокерский дом "ОТКРЫТИЕ" | G146: 36209
B147: ГК «АЛОР» | G147: 28888
B148: КИТ Финанс (ООО) | G148: 19788
B149: ООО «Инвестиционная палата» | G149: 19428
B152: Ведущие операторы рынка – число активных клиентов | H152: Таблица 2
B153: Наименование Участника торгов | G153: Количество клиентов
B154: ЗАО «ФИНАМ» | G154: 13099
B155: ФГ БКС | G155: 10624
B156: ОАО «Сбербанк России» | G156: 9813
B157: ВТБ 24 (ЗАО) | G157: 7268
B158: ОАО «АЛЬФА-БАНК» | G158: 4582
B159: ООО «АТОН» | G159: 3986
B160: ОАО "Брокерский дом "ОТКРЫТИЕ" | G160: 3388
B161: ГК «АЛОР» | G161: 2691
B162: ЗАО «Сбербанк КИБ» | G162: 1611
B163: ГПБ (ОАО) | G163: 1601
B166: Ведущие операторы рынка – объем клиентских операций | H166: Таблица 3
B167: Наименование Участника торгов | G167: Торговый оборот, руб.
B168: ОАО "Брокерский дом "ОТКРЫТИЕ" | G168: 903969479660
B169: ИК «Ренессанс Капитал» | G169: 695607119393
B170: ФГ БКС | G170: 617077156113
B171: ЗАО «Сбербанк КИБ» | G171: 434909768394
B172: ЗАО «ФИНАМ» | G172: 374317381533
B173: ОАО «Промсвязьбанк» | G173: 360962784708
B174: ООО «БК РЕГИОН» | G174: 321712062312
B175: ООО «АТОН» | G175: 298599133929
B176: ЗАО «БАНК КРЕДИТ СВИСС (МОСКВА)» | G176: 244261645620
B177: ООО «ИК ВЕЛЕС Капитал» | G177: 234398019985

Sheet Май2013
B2: Клиенты Участников торгов Фондовой биржи ММВБ
B3: 2013-05-01
B6: Динамика количества клиентов за | C6: =B3 -> 2013-05-01
B10: Количество зарегистрированных клиентов в Системе торгов (по состоянию на последний день месяца): | H10: Таблица 1
B11: Группы клиентов | E11: 2013-04-30 | F11: =EDATE(E11,1) -> 2013-05-30 | G11: Изменение (ед.) | H11: Изменение (%)
B12: Физические лица | E12: 1037702 | F12: 1043140 | G12: =F12-E12 -> 5438 | H12: =F12/E12-1 -> 0.005240425479
B13: Юридические лица | E13: 34957 | F13: 35202 | G13: =F13-E13 -> 245 | H13: =F13/E13-1 -> 0.007008610579
B14: Нерезиденты | E14: 12590 | F14: 12720 | G14: 130 | H14: 0.01032565528
B15: Нерезиденты - физические лица | E15: 2336 | F15: 2365 | G15: 29 | H15: 0.01241438356
B16: Нерезиденты - юридические лица | E16: 10254 | F16: 10355 | G16: 101 | H16: 0.009849814706
B17: Клиенты, передавшие свои средства в ДУ | E17: 11746 | F17: 12373 | G17: 627 | H17: 0.053379874
B18: Всего | E18: 1096995 | F18: 1103435 | G18: 6440 | H18: 0.005870582819
B21: Количество уникальных клиентов в Системе торгов (по состоянию на последний день месяца): | H21: Таблица 2
B22: Группы клиентов | E22: =E11 -> 2013-04-30 | F22: =F11 -> 2013-05-30 | G22: Изменение (ед.) | H22: Изменение (%)
B23: Физические лица | E23: 875529 | F23: 877243 | G23: =F23-E23 -> 1714 | H23: =F23/E23-1 -> 0.001957673589
B24: Юридические лица | E24: 18984 | F24: 18978 | G24: =F24-E24 -> -6 | H24: =F24/E24-1 -> -0.0003160556258
B25: Нерезиденты | E25: 6397 | F25: 6424 | G25: 27 | H25: 0.004220728466
B26: Нерезиденты - физические лица | E26: 2292 | F26: 2317 | G26: 25 | H26: 0.01090750436
B27: Нерезиденты - юридические лица | E27: 4105 | F27: 4107 | G27: 2 | H27: 0.0004872107186
B28: Клиенты, передавшие свои средства в ДУ | E28: 5262 | F28: 5237 | G28: -25 | H28: -0.00475104523
B29: Всего | E29: 906172 | F29: 907882 | G29: 1710 | H29: 0.001887058969
B32: Количество активных клиентов в Системе торгов (совершивших в течение месяца хотя бы одну сделку): | H32: Таблица 3
B33: Группы клиентов | E33: =EDATE(C6,-1) -> 2013-04-01 | F33: =EDATE(E33,1) -> 2013-05-01 | G33: Изменение (ед.) | H33: Изменение (%)
B34: Физические лица | E34: 67871 | F34: 65030 | G34: =F34-E34 -> -2841 | H34: =F34/E34-1 -> -0.04185882041
B35: Юридические лица | E35: 1508 | F35: 1347 | G35: -161 | H35: -0.1067639257
B36: Нерезиденты | E36: 685 | F36: 582 | G36: -103 | H36: -0.1503649635
B37: Нерезиденты - физические лица | E37: 198 | F37: 150 | G37: -48 | H37: -0.2424242424
B38: Нерезиденты - юридические лица | E38: 487 | F38: 432 | G38: -55 | H38: -0.112936345
B39: Клиенты, передавшие свои средства в ДУ | E39: 903 | F39: 766 | G39: -137 | H39: -0.1517165006
B40: Всего | E40: 70967 | F40: 67725 | G40: -3242 | H40: -0.04568320487
B44: Изменение количества уникальных клиентов - ретроспективные данные
B48: Количество уникальных клиентов в Системе торгов (по состоянию на последний день месяца) (ежегодная статистика): | H48: Таблица 1
B49: Группы клиентов | E49: 2009-12-31 | F49: 2010-12-31 | G49: 2011-12-31 | H49: 2012-12-31
B50: Физические лица | E50: 671475 | F50: 714295 | G50: 772175 | H50: 805549
B51: Юридические лица | E51: 16364 | F51: 17170 | G51: 16850 | H51: 17821
B52: Нерезиденты | E52: 3851 | F52: 4295 | G52: 5058 | H52: 5876
B53: Клиенты, передавшие свои средства в ДУ | E53: 4717 | F53: 5348 | G53: 5242 | H53: 5261
B54: Всего | E54: 696407 | F54: 741108 | G54: 799325 | H54: 834507
B82: Количество уникальных клиентов в Системе торгов (по состоянию на последний день месяца) (за последние 6 месяцев): | H82: Таблица 2
B83: Группы клиентов | C83: =EDATE(D83,-1) -> 2012-12-28 | D83: =EDATE(E83,-1) -> 2013-01-28 | E83: =EDATE(F83,-1) -> 2013-02-28 | F83: =EDATE(G83,-1) -> 2013-03-30 | G83: =EDATE(H83,-1) -> 2013-04-30 | H83: =EDATE(E11,1) -> 2013-05-30
B84: Физические лица | C84: 805549 | D84: 833454 | E84: 830471 | F84: 871195 | G84: 875529 | H84: 877243
B85: Юридические лица | C85: 17821 | D85: 18015 | E85: 17820 | F85: 18896 | G85: 18984 | H85: 18978
B86: Нерезиденты | C86: 5876 | D86: 6049 | E86: 6029 | F86: 6333 | G86: 6397 | H86: 6424
B87: Клиенты, передавшие свои средства в ДУ | C87: 5261 | D87: 5288 | E87: 5099 | F87: 5433 | G87: 5262 | H87: 5237
B88: Всего | C88: 834507 | D88: 862806 | E88: 859419 | F88: 901857 | G88: 906172 | H88: 907882
B124: Дополнительные показатели за | C124: 2013-05-30
H127: Таблица 1
B128: Участники торгов | G128: Абсолютные показатели
B129: Количество Участников торгов, имеющих зарегистрированных клиентов | G129: 753
B130: Количество Участников торгов, имеющих уникальных клиентов | G130: 753
B131: Количество Участников торгов, имеющих активных клиентов | G131: 461
B135: Списки ведущих операторов фондового рынка - клиенты Участников торгов за | F135: =C6 -> 2013-05-01
B138: Ведущие операторы рынка – число зарегистрированных клиентов | H138: Таблица 1
B139: Наименование Участника торгов | G139: Количество клиентов
B140: ВТБ 24 (ЗАО) | G140: 193342
B141: ОАО «Сбербанк России» | G141: 175827
B142: ЗАО «ФИНАМ» | G142: 120513
B143: ФГ БКС | G143: 107244
B144: ОАО «АЛЬФА-БАНК» | G144: 60152
B145: ООО «АТОН» | G145: 42836
B146: ОАО "Брокерский дом "ОТКРЫТИЕ" | G146: 36662
B147: ГК «АЛОР» | G147: 28957
B148: КИТ Финанс (ООО) | G148: 19821
B149: ООО «Инвестиционная палата» | G149: 19440
B152: Ведущие операторы рынка – число активных клиентов | H152: Таблица 2
B153: Наименование Участника торгов | G153: Количество клиентов
B154: ЗАО «ФИНАМ» | G154: 10660
B155: ОАО «Сбербанк России» | G155: 9890
B156: ФГ БКС | G156: 9318
B157: ГК «АЛОР» | G157: 7104
B158: ВТБ 24 (ЗАО) | G158: 6484
B159: ОАО «АЛЬФА-БАНК» | G159: 3898
B160: ООО «АТОН» | G160: 3368
B161: ОАО "Брокерский дом "ОТКРЫТИЕ" | G161: 3047
B162: ГПБ (ОАО) | G162: 1567
B163: ЗАО «Сбербанк КИБ» | G163: 1429
B166: Ведущие операторы рынка – объем клиентских операций | H166: Таблица 3
B167: Наименование Участника торгов | G167: Торговый оборот, руб.
B168: ОАО "Брокерский дом "ОТКРЫТИЕ" | G168: 876168795062
B169: ФГ БКС | G169: 613944949243
B170: ИК «Ренессанс Капитал» | G170: 552467763949
B171: ЗАО «Сбербанк КИБ» | G171: 514223835921
B172: ЗАО «ФИНАМ» | G172: 310099420456
B173: ОАО «Промсвязьбанк» | G173: 295566594399
B174: ООО «АТОН» | G174: 220480123841
B175: ЗАО «БАНК КРЕДИТ СВИСС (МОСКВА)» | G175: 211689200077
B176: ООО «БК РЕГИОН» | G176: 185451325903
B177: ЗАО АКБ «ЦентроКредит» | G177: 180663031701

Sheet Июнь2013
B2: Клиенты Участников торгов Фондовой биржи ММВБ
B3: 2013-06-01
B6: Динамика количества клиентов за | C6: =B3 -> 2013-06-01
B10: Количество зарегистрированных клиентов в Системе торгов (по состоянию на последний день месяца): | H10: Таблица 1
B11: Группы клиентов | E11: 2013-05-31 | F11: =EDATE(E11,1) -> 2013-06-30 | G11: Изменение (ед.) | H11: Изменение (%)
B12: Физические лица | E12: 1043140 | F12: 1046639 | G12: =F12-E12 -> 3499 | H12: =F12/E12-1 -> 0.003354295684
B13: Юридические лица | E13: 35202 | F13: 35309 | G13: =F13-E13 -> 107 | H13: =F13/E13-1 -> 0.003039600023
B14: Нерезиденты | E14: 12720 | F14: 12802 | G14: 82 | H14: 0.006446540881
B15: Нерезиденты - физические лица | E15: 2365 | F15: 2391 | G15: 26 | H15: 0.01099365751
B16: Нерезиденты - юридические лица | E16: 10355 | F16: 10411 | G16: 56 | H16: 0.005408015451
B17: Клиенты, передавшие свои средства в ДУ | E17: 12373 | F17: 12388 | G17: 15 | H17: 0.001212317142
B18: Всего | E18: 1103435 | F18: 1107138 | G18: 3703 | H18: 0.003355884125
B21: Количество уникальных клиентов в Системе торгов (по состоянию на последний день месяца): | H21: Таблица 2
B22: Группы клиентов | E22: =E11 -> 2013-05-31 | F22: =F11 -> 2013-06-30 | G22: Изменение (ед.) | H22: Изменение (%)
B23: Физические лица | E23: 877243 | F23: 880422 | G23: =F23-E23 -> 3179 | H23: =F23/E23-1 -> 0.003623853368
B24: Юридические лица | E24: 18978 | F24: 19092 | G24: =F24-E24 -> 114 | H24: =F24/E24-1 -> 0.006006955422
B25: Нерезиденты | E25: 6424 | F25: 6588 | G25: 164 | H25: 0.02552926526
B26: Нерезиденты - физические лица | E26: 2317 | F26: 2334 | G26: 17 | H26: 0.007337073802
B27: Нерезиденты - юридические лица | E27: 4107 | F27: 4254 | G27: 147 | H27: 0.03579254931
B28: Клиенты, передавшие свои средства в ДУ | E28: 5237 | F28: 5221 | G28: -16 | H28: -0.003055184266
B29: Всего | E29: 907882 | F29: 911323 | G29: 3441 | H29: 0.003790140128
B32: Количество активных клиентов в Системе торгов (совершивших в течение месяца хотя бы одну сделку): | H32: Таблица 3
B33: Группы клиентов | E33: =EDATE(C6,-1) -> 2013-05-01 | F33: =EDATE(E33,1) -> 2013-06-01 | G33: Изменение (ед.) | H33: Изменение (%)
B34: Физические лица | E34: 65030 | F34: 56777 | G34: =F34-E34 -> -8253 | H34: =F34/E34-1 -> -0.1269106566
B35: Юридические лица | E35: 1347 | F35: 1390 | G35: 43 | H35: 0.03192279139
B36: Нерезиденты | E36: 582 | F36: 590 | G36: 8 | H36: 0.01374570447
B37: Нерезиденты - физические лица | E37: 150 | F37: 146 | G37: -4 | H37: -0.02666666667
B38: Нерезиденты - юридические лица | E38: 432 | F38: 444 | G38: 12 | H38: 0.02777777778
B39: Клиенты, передавшие свои средства в ДУ | E39: 766 | F39: 683 | G39: -83 | H39: -0.1083550914
B40: Всего | E40: 67725 | F40: 59440 | G40: -8285 | H40: -0.1223329642
B44: Изменение количества уникальных клиентов - ретроспективные данные
B48: Количество уникальных клиентов в Системе торгов (по состоянию на последний день месяца) (ежегодная статистика): | H48: Таблица 1
B49: Группы клиентов | E49: 2009-12-31 | F49: 2010-12-31 | G49: 2011-12-31 | H49: 2012-12-31
B50: Физические лица | E50: 671475 | F50: 714295 | G50: 772175 | H50: 805549
B51: Юридические лица | E51: 16364 | F51: 17170 | G51: 16850 | H51: 17821
B52: Нерезиденты | E52: 3851 | F52: 4295 | G52: 5058 | H52: 5876
B53: Клиенты, передавшие свои средства в ДУ | E53: 4717 | F53: 5348 | G53: 5242 | H53: 5261
B54: Всего | E54: 696407 | F54: 741108 | G54: 799325 | H54: 834507
B82: Количество уникальных клиентов в Системе торгов (по состоянию на последний день месяца) (за последние 6 месяцев): | H82: Таблица 2
B83: Группы клиентов | C83: =EDATE(D83,-1) -> 2013-01-28 | D83: =EDATE(E83,-1) -> 2013-02-28 | E83: =EDATE(F83,-1) -> 2013-03-30 | F83: =EDATE(G83,-1) -> 2013-04-30 | G83: =EDATE(H83,-1) -> 2013-05-30 | H83: =EDATE(E11,1) -> 2013-06-30
B84: Физические лица | C84: 833454 | D84: 830471 | E84: 871195 | F84: 875529 | G84: 877243 | H84: 880422
B85: Юридические лица | C85: 18015 | D85: 17820 | E85: 18896 | F85: 18984 | G85: 18978 | H85: 19092
B86: Нерезиденты | C86: 6049 | D86: 6029 | E86: 6333 | F86: 6397 | G86: 6424 | H86: 6588
B87: Клиенты, передавшие свои средства в ДУ | C87: 5288 | D87: 5099 | E87: 5433 | F87: 5262 | G87: 5237 | H87: 5221
B88: Всего | C88: 862806 | D88: 859419 | E88: 901857 | F88: 906172 | G88: 907882 | H88: 911323
B124: Дополнительные показатели за | C124: 2013-06-30
H127: Таблица 1
B128: Участники торгов | G128: Абсолютные показатели
B129: Количество Участников торгов, имеющих зарегистрированных клиентов | G129: 725
B130: Количество Участников торгов, имеющих уникальных клиентов | G130: 725
B131: Количество Участников торгов, имеющих активных клиентов | G131: 412
B135: Списки ведущих операторов фондового рынка - клиенты Участников торгов за | F135: =C6 -> 2013-06-01
B138: Ведущие операторы рынка – число зарегистрированных клиентов | H138: Таблица 1
B139: Наименование Участника торгов | G139: Количество клиентов
B140: ВТБ 24 (ЗАО) | G140: 194378
B141: Сбербанк | G141: 193723
B142: ЗАО «ФИНАМ» | G142: 120850
B143: ФГ БКС | G143: 107746
B144: ОАО «АЛЬФА-БАНК» | G144: 60249
B145: ООО «АТОН» | G145: 43098
B146: ОАО "Брокерский дом "ОТКРЫТИЕ" | G146: 37265
B147: ГК «АЛОР» | G147: 29011
B148: КИТ Финанс (ООО) | G148: 19863
B149: ООО «Инвестиционная палата» | G149: 19452
B152: Ведущие операторы рынка – число активных клиентов | H152: Таблица 2
B153: Наименование Участника торгов | G153: Количество клиентов
B154: Сбербанк | G154: 10652
B155: ЗАО «ФИНАМ» | G155: 10195
B156: ФГ БКС | G156: 9055
B157: ВТБ 24 (ЗАО) | G157: 6110
B158: ОАО «АЛЬФА-БАНК» | G158: 3795
B159: ООО «АТОН» | G159: 3050
B160: ОАО "Брокерский дом "ОТКРЫТИЕ" | G160: 3011
B161: ГК «АЛОР» | G161: 1627
B162: ГПБ (ОАО) | G162: 1430
B163: КИТ Финанс (ООО) | G163: 1328
B166: Ведущие операторы рынка – объем клиентских операций | H166: Таблица 3
B167: Наименование Участника торгов | G167: Торговый оборот, руб.
B168: ОАО "Брокерский дом "ОТКРЫТИЕ" | G168: 862483558677
B169: Сбербанк | G169: 826941700427
B170: ИК «Ренессанс Капитал» | G170: 733781126907
B171: ФГ БКС | G171: 619837939238
B172: ЗАО «ФИНАМ» | G172: 303207894055
B173: ОАО «Промсвязьбанк» | G173: 270697785194
B174: ООО «АТОН» | G174: 215545584987
B175: ООО «БК РЕГИОН» | G175: 213552853611
B176: «НОМОС-БАНК» (ОАО) | G176: 198910603629
B177: ЗАО «БАНК КРЕДИТ СВИСС (МОСКВА)» | G177: 192815149652

Sheet Июль2013
B2: Клиенты Участников торгов Фондовой биржи ММВБ
B3: 2013-07-01
B6: Динамика количества клиентов за | C6: =B3 -> 2013-07-01
B10: Количество зарегистрированных клиентов в Системе торгов (по состоянию на последний день месяца): | H10: Таблица 1
B11: Группы клиентов | E11: 2013-06-30 | F11: =EDATE(E11,1) -> 2013-07-30 | G11: Изменение (ед.) | H11: Изменение (%)
B12: Физические лица | E12: 1046639 | F12: 1044498 | G12: =F12-E12 -> -2141 | H12: =F12/E12-1 -> -0.002045595473
B13: Юридические лица | E13: 35309 | F13: 35308 | G13: =F13-E13 -> -1 | H13: =F13/E13-1 -> -2.832139115e-05
B14: Нерезиденты | E14: 12802 | F14: 12989 | G14: 187 | H14: 0.01460709264
B15: Нерезиденты - физические лица | E15: 2391 | F15: 2403 | G15: 12 | H15: 0.005018820577
B16: Нерезиденты - юридические лица | E16: 10411 | F16: 10586 | G16: 175 | H16: 0.01680914417
B17: Клиенты, передавшие свои средства в ДУ | E17: 12388 | F17: 12413 | G17: 25 | H17: 0.002018082015
B18: Всего | E18: 1107138 | F18: 1105208 | G18: -1930 | H18: -0.001743233454
B21: Количество уникальных клиентов в Системе торгов (по состоянию на последний день месяца): | H21: Таблица 2
B22: Группы клиентов | E22: =E11 -> 2013-06-30 | F22: =F11 -> 2013-07-30 | G22: Изменение (ед.) | H22: Изменение (%)
B23: Физические лица | E23: 880422 | F23: 884194 | G23: =F23-E23 -> 3772 | H23: =F23/E23-1 -> 0.004284309115
B24: Юридические лица | E24: 19092 | F24: 19208 | G24: =F24-E24 -> 116 | H24: =F24/E24-1 -> 0.006075843285
B25: Нерезиденты | E25: 6588 | F25: 6682 | G25: 94 | H25: 0.01426836673
B26: Нерезиденты - физические лица | E26: 2334 | F26: 2401 | G26: 67 | H26: 0.02870608398
B27: Нерезиденты - юридические лица | E27: 4254 | F27: 4281 | G27: 27 | H27: 0.00634696756
B28: Клиенты, передавшие свои средства в ДУ | E28: 5221 | F28: 5233 | G28: 12 | H28: 0.002298410266
B29: Всего | E29: 911323 | F29: 915317 | G29: 3994 | H29: 0.004382639306
B32: Количество активных клиентов в Системе торгов (совершивших в течение месяца хотя бы одну сделку): | H32: Таблица 3
B33: Группы клиентов | E33: =EDATE(C6,-1) -> 2013-06-01 | F33: =EDATE(E33,1) -> 2013-07-01 | G33: Изменение (ед.) | H33: Изменение (%)
B34: Физические лица | E34: 56777 | F34: 59087 | G34: =F34-E34 -> 2310 | H34: =F34/E34-1 -> 0.04068548884
B35: Юридические лица | E35: 1390 | F35: 1454 | G35: 64 | H35: 0.04604316547
B36: Нерезиденты | E36: 590 | F36: 628 | G36: 38 | H36: 0.06440677966
B37: Нерезиденты - физические лица | E37: 146 | F37: 161 | G37: 15 | H37: 0.102739726
B38: Нерезиденты - юридические лица | E38: 444 | F38: 467 | G38: 23 | H38: 0.0518018018
B39: Клиенты, передавшие свои средства в ДУ | E39: 683 | F39: 825 | G39: 142 | H39: 0.2079062958
B40: Всего | E40: 59440 | F40: 61994 | G40: 2554 | H40: 0.04296769852
B44: Изменение количества уникальных клиентов - ретроспективные данные
B48: Количество уникальных клиентов в Системе торгов (по состоянию на последний день месяца) (ежегодная статистика): | H48: Таблица 1
B49: Группы клиентов | E49: 2009-12-31 | F49: 2010-12-31 | G49: 2011-12-31 | H49: 2012-12-31
B50: Физические лица | E50: 671475 | F50: 714295 | G50: 772175 | H50: 805549
B51: Юридические лица | E51: 16364 | F51: 17170 | G51: 16850 | H51: 17821
B52: Нерезиденты | E52: 3851 | F52: 4295 | G52: 5058 | H52: 5876
B53: Клиенты, передавшие свои средства в ДУ | E53: 4717 | F53: 5348 | G53: 5242 | H53: 5261
B54: Всего | E54: 696407 | F54: 741108 | G54: 799325 | H54: 834507
B82: Количество уникальных клиентов в Системе торгов (по состоянию на последний день месяца) (за последние 6 месяцев): | H82: Таблица 2
B83: Группы клиентов | C83: =EDATE(D83,-1) -> 2013-02-28 | D83: =EDATE(E83,-1) -> 2013-03-30 | E83: =EDATE(F83,-1) -> 2013-04-30 | F83: =EDATE(G83,-1) -> 2013-05-30 | G83: =EDATE(H83,-1) -> 2013-06-30 | H83: =EDATE(E11,1) -> 2013-07-30
B84: Физические лица | C84: 830471 | D84: 871195 | E84: 875529 | F84: 877243 | G84: 880422 | H84: 884194
B85: Юридические лица | C85: 17820 | D85: 18896 | E85: 18984 | F85: 18978 | G85: 19092 | H85: 19208
B86: Нерезиденты | C86: 6029 | D86: 6333 | E86: 6397 | F86: 6424 | G86: 6588 | H86: 6682
B87: Клиенты, передавшие свои средства в ДУ | C87: 5099 | D87: 5433 | E87: 5262 | F87: 5237 | G87: 5221 | H87: 5233
B88: Всего | C88: 859419 | D88: 901857 | E88: 906172 | F88: 907882 | G88: 911323 | H88: 915317
B124: Дополнительные показатели за | C124: 2013-07-30
H127: Таблица 1
B128: Участники торгов | G128: Абсолютные показатели
B129: Количество Участников торгов, имеющих зарегистрированных клиентов | G129: 759
B130: Количество Участников торгов, имеющих уникальных клиентов | G130: 759
B131: Количество Участников торгов, имеющих активных клиентов | G131: 462
B135: Списки ведущих операторов фондового рынка - клиенты Участников торгов за | F135: =C6 -> 2013-07-01
B138: Ведущие операторы рынка – число зарегистрированных клиентов | H138: Таблица 1
B139: Наименование Участника торгов | G139: Количество клиентов
B140: ВТБ 24 (ЗАО) | G140: 195356
B141: Сбербанк | G141: 194529
B142: ЗАО «ФИНАМ» | G142: 116229
B143: ФГ БКС | G143: 108272
B144: ОАО «АЛЬФА-БАНК» | G144: 60323
B145: ООО «АТОН» | G145: 43233
B146: ОАО "Брокерский дом "ОТКРЫТИЕ" | G146: 37820
B147: ГК «АЛОР» | G147: 29081
B148: КИТ Финанс (ООО) | G148: 19892
B149: ООО «Инвестиционная палата» | G149: 19462
B152: Ведущие операторы рынка – число активных клиентов | H152: Таблица 2
B153: Наименование Участника торгов | G153: Количество клиентов
B154: Сбербанк | G154: 10509
B155: ЗАО «ФИНАМ» | G155: 10429
B156: ФГ БКС | G156: 9331
B157: ВТБ 24 (ЗАО) | G157: 6349
B158: ОАО «АЛЬФА-БАНК» | G158: 3861
B159: ОАО "Брокерский дом "ОТКРЫТИЕ" | G159: 3246
B160: ООО «АТОН» | G160: 3118
B161: ООО «НЭТТРЭЙДЕР» | G161: 2020
B162: ГК «АЛОР» | G162: 1629
B163: ГПБ (ОАО) | G163: 1582
B166: Ведущие операторы рынка – объем клиентских операций | H166: Таблица 3
B167: Наименование Участника торгов | G167: Торговый оборот, руб.
B168: Сбербанк | G168: 943341957790
B169: ИК «Ренессанс Капитал» | G169: 899210671011
B170: ОАО "Брокерский дом "ОТКРЫТИЕ" | G170: 776577619676
B171: ФГ БКС | G171: 631694962069
B172: «НОМОС-БАНК» (ОАО) | G172: 434558604650
B173: ОАО «Промсвязьбанк» | G173: 333939935134
B174: ЗАО «ФИНАМ» | G174: 327174035784
B175: ООО «РОНИН» | G175: 268289454770
B176: ООО «АТОН» | G176: 261611462126
B177: ГПБ (ОАО) | G177: 202923007815

Sheet Август2013
B2: Клиенты Участников торгов Фондовой биржи ММВБ
B3: 2013-08-01
B6: Динамика количества клиентов за | C6: =B3 -> 2013-08-01
B10: Количество зарегистрированных клиентов в Системе торгов (по состоянию на последний день месяца): | H10: Таблица 1
B11: Группы клиентов | E11: 2013-07-31 | F11: =EDATE(E11,1) -> 2013-08-31 | G11: Изменение (ед.) | H11: Изменение (%)
B12: Физические лица | E12: 1044498 | F12: 1032506 | G12: =F12-E12 -> -11992 | H12: =F12/E12-1 -> -0.01148111342
B13: Юридические лица | E13: 35308 | F13: 35463 | G13: =F13-E13 -> 155 | H13: =F13/E13-1 -> 0.004389939957
B14: Нерезиденты | E14: 12989 | F14: 13206 | G14: 217 | H14: 0.01670644391
B15: Нерезиденты - физические лица | E15: 2403 | F15: 2475 | G15: 72 | H15: 0.02996254682
B16: Нерезиденты - юридические лица | E16: 10586 | F16: 10731 | G16: 145 | H16: 0.0136973361
B17: Клиенты, передавшие свои средства в ДУ | E17: 12413 | F17: 12482 | G17: 69 | H17: 0.005558688472
B18: Всего | E18: 1105208 | F18: 1093657 | G18: -11551 | H18: -0.01045142634
B21: Количество уникальных клиентов в Системе торгов (по состоянию на последний день месяца): | H21: Таблица 2
B22: Группы клиентов | E22: =E11 -> 2013-07-31 | F22: =F11 -> 2013-08-31 | G22: Изменение (ед.) | H22: Изменение (%)
B23: Физические лица | E23: 884194 | F23: 882528 | G23: =F23-E23 -> -1666 | H23: =F23/E23-1 -> -0.001884201883
B24: Юридические лица | E24: 19208 | F24: 19235 | G24: =F24-E24 -> 27 | H24: =F24/E24-1 -> 0.001405664307
B25: Нерезиденты | E25: 6682 | F25: 6722 | G25: 40 | H25: 0.005986231667
B26: Нерезиденты - физические лица | E26: 2401 | F26: 2416 | G26: 15 | H26: 0.006247396918
B27: Нерезиденты - юридические лица | E27: 4281 | F27: 4306 | G27: 25 | H27: 0.005839757066
B28: Клиенты, передавшие свои средства в ДУ | E28: 5233 | F28: 5237 | G28: 4 | H28: 0.0007643798968
B29: Всего | E29: 915317 | F29: =SUM(F23,F24,F25,F28) -> 913722 | G29: -1595 | H29: -0.00174256569
B32: Количество активных клиентов в Системе торгов (совершивших в течение месяца хотя бы одну сделку): | H32: Таблица 3
B33: Группы клиентов | E33: =EDATE(C6,-1) -> 2013-07-01 | F33: =EDATE(E33,1) -> 2013-08-01 | G33: Изменение (ед.) | H33: Изменение (%)
B34: Физические лица | E34: 59087 | F34: 55892 | G34: =F34-E34 -> -3195 | H34: =F34/E34-1 -> -0.05407280789
B35: Юридические лица | E35: 1454 | F35: 1362 | G35: -92 | H35: -0.06327372765
B36: Нерезиденты | E36: 628 | F36: 609 | G36: -19 | H36: -0.03025477707
B37: Нерезиденты - физические лица | E37: 161 | F37: 150 | G37: -11 | H37: -0.06832298137
B38: Нерезиденты - юридические лица | E38: 467 | F38: 459 | G38: -8 | H38: -0.01713062099
B39: Клиенты, передавшие свои средства в ДУ | E39: 825 | F39: 651 | G39: -174 | H39: -0.2109090909
B40: Всего | E40: 61994 | F40: 58514 | G40: -3480 | H40: -0.05613446463
B44: Изменение количества уникальных клиентов - ретроспективные данные
B48: Количество уникальных клиентов в Системе торгов (по состоянию на последний день месяца) (ежегодная статистика): | H48: Таблица 1
B49: Группы клиентов | E49: 2009-12-31 | F49: 2010-12-31 | G49: 2011-12-31 | H49: 2012-12-31
B50: Физические лица | E50: 671475 | F50: 714295 | G50: 772175 | H50: 805549
B51: Юридические лица | E51: 16364 | F51: 17170 | G51: 16850 | H51: 17821
B52: Нерезиденты | E52: 3851 | F52: 4295 | G52: 5058 | H52: 5876
B53: Клиенты, передавшие свои средства в ДУ | E53: 4717 | F53: 5348 | G53: 5242 | H53: 5261
B54: Всего | E54: 696407 | F54: 741108 | G54: 799325 | H54: 834507
B82: Количество уникальных клиентов в Системе торгов (по состоянию на последний день месяца) (за последние 6 месяцев): | H82: Таблица 2
B83: Группы клиентов | C83: =EDATE(D83,-1) -> 2013-03-30 | D83: =EDATE(E83,-1) -> 2013-04-30 | E83: =EDATE(F83,-1) -> 2013-05-30 | F83: =EDATE(G83,-1) -> 2013-06-30 | G83: =EDATE(H83,-1) -> 2013-07-31 | H83: =EDATE(E11,1) -> 2013-08-31
B84: Физические лица | C84: 871195 | D84: 875529 | E84: 877243 | F84: 880422 | G84: 884194 | H84: 882528
B85: Юридические лица | C85: 18896 | D85: 18984 | E85: 18978 | F85: 19092 | G85: 19208 | H85: 19235
B86: Нерезиденты | C86: 6333 | D86: 6397 | E86: 6424 | F86: 6588 | G86: 6682 | H86: 6722
B87: Клиенты, передавшие свои средства в ДУ | C87: 5433 | D87: 5262 | E87: 5237 | F87: 5221 | G87: 5233 | H87: 5237
B88: Всего | C88: 901857 | D88: 906172 | E88: 907882 | F88: 911323 | G88: 915317 | H88: 913722
B124: Дополнительные показатели за | C124: 2013-08-31
H127: Таблица 1
B128: Участники торгов | G128: Абсолютные показатели
B129: Количество Участников торгов, имеющих зарегистрированных клиентов | G129: 761
B130: Количество Участников торгов, имеющих уникальных клиентов | G130: 761
B131: Количество Участников торгов, имеющих активных клиентов | G131: 469
B135: Списки ведущих операторов фондового рынка - клиенты Участников торгов за | F135: =C6 -> 2013-08-01
B138: Ведущие операторы рынка – число зарегистрированных клиентов | H138: Таблица 1
B139: Наименование Участника торгов | G139: Количество клиентов
B140: ВТБ 24 (ЗАО) | G140: 196488
B141: Сбербанк | G141: 180785
B142: ЗАО «ФИНАМ» | G142: 114312
B143: ФГ БКС | G143: 108713
B144: ОАО «АЛЬФА-БАНК» | G144: 60419
B145: ООО «АТОН» | G145: 43366
B146: ОАО «Брокерский дом «ОТКРЫТИЕ» | G146: 38322
B147: ГК «АЛОР» | G147: 29143
B148: КИТ Финанс (ООО) | G148: 19969
B149: ООО «Инвестиционная палата» | G149: 19462
B152: Ведущие операторы рынка – число активных клиентов | H152: Таблица 2
B153: Наименование Участника торгов | G153: Количество клиентов
B154: Сбербанк | G154: 10148
B155: ЗАО «ФИНАМ» | G155: 9673
B156: ФГ БКС | G156: 8757
B157: ВТБ 24 (ЗАО) | G157: 6109
B158: ОАО «АЛЬФА-БАНК» | G158: 3788
B159: ОАО «Брокерский дом «ОТКРЫТИЕ» | G159: 3133
B160: ООО «АТОН» | G160: 3124
B161: ГК «АЛОР» | G161: 1528
B162: ГПБ (ОАО) | G162: 1499
B163: КИТ Финанс (ООО) | G163: 1336
B166: Ведущие операторы рынка – объем клиентских операций | H166: Таблица 3
B167: Наименование Участника торгов | G167: Торговый оборот, руб.
B168: Сбербанк | G168: 849446137539
B169: ОАО «Брокерский дом «ОТКРЫТИЕ» | G169: 718227515999
B170: ИК «Ренессанс Капитал» | G170: 647808752436
B171: ФГ БКС | G171: 645340101700
B172: «НОМОС-БАНК» (ОАО) | G172: 410723165470
B173: ОАО «Промсвязьбанк» | G173: 311525517378
B174: ЗАО «ФИНАМ» | G174: 296562985483
B175: ООО «БК РЕГИОН» | G175: 251725666817
B176: ООО «АТОН» | G176: 239286823140
B177: ООО «РОНИН» | G177: 218025840330

Sheet Сентябрь2013
B2: Клиенты Участников торгов Фондовой биржи ММВБ
B3: 2013-09-01
B6: Динамика количества клиентов за | C6: =B3 -> 2013-09-01
B10: Количество зарегистрированных клиентов в Системе торгов (по состоянию на последний день месяца): | H10: Таблица 1
B11: Группы клиентов | E11: 2013-08-31 | F11: =EDATE(E11,1) -> 2013-09-30 | G11: Изменение (ед.) | H11: Изменение (%)
B12: Физические лица | E12: 1032506 | F12: 1035902 | G12: =F12-E12 -> 3396 | H12: =F12/E12-1 -> 0.003289085003
B13: Юридические лица | E13: 35463 | F13: 35495 | G13: =F13-E13 -> 32 | H13: =F13/E13-1 -> 0.0009023489271
B14: Нерезиденты | E14: 13206 | F14: 13350 | G14: 144 | H14: 0.01090413448
B15: Нерезиденты - физические лица | E15: 2475 | F15: 2507 | G15: 32 | H15: 0.01292929293
B16: Нерезиденты - юридические лица | E16: 10731 | F16: 10843 | G16: 112 | H16: 0.01043705153
B17: Клиенты, передавшие свои средства в ДУ | E17: 12482 | F17: 12448 | G17: -34 | H17: -0.002723922448
B18: Всего | E18: 1093657 | F18: 1097195 | G18: 3538 | H18: 0.003235017926
B21: Количество уникальных клиентов в Системе торгов (по состоянию на последний день месяца): | H21: Таблица 2
B22: Группы клиентов | E22: =E11 -> 2013-08-31 | F22: =F11 -> 2013-09-30 | G22: Изменение (ед.) | H22: Изменение (%)
B23: Физические лица | E23: 882528 | F23: 872709 | G23: =F23-E23 -> -9819 | H23: =F23/E23-1 -> -0.0111259926
B24: Юридические лица | E24: 19235 | F24: 19279 | G24: =F24-E24 -> 44 | H24: =F24/E24-1 -> 0.002287496751
B25: Нерезиденты | E25: 6722 | F25: 6763 | G25: 41 | H25: 0.006099375186
B26: Нерезиденты - физические лица | E26: 2416 | F26: 2444 | G26: 28 | H26: 0.01158940397
B27: Нерезиденты - юридические лица | E27: 4306 | F27: 4319 | G27: 13 | H27: 0.003019043196
B28: Клиенты, передавшие свои средства в ДУ | E28: 5237 | F28: 5254 | G28: 17 | H28: 0.003246133282
B29: Всего | E29: =SUM(E23,E24,E25,E28) -> 913722 | F29: =SUM(F23,F24,F25,F28) -> 904005 | G29: -9717 | H29: -0.0106345256
B32: Количество активных клиентов в Системе торгов (совершивших в течение месяца хотя бы одну сделку): | H32: Таблица 3
B33: Группы клиентов | E33: =EDATE(C6,-1) -> 2013-08-01 | F33: =EDATE(E33,1) -> 2013-09-01 | G33: Изменение (ед.) | H33: Изменение (%)
B34: Физические лица | E34: 55892 | F34: 61179 | G34: =F34-E34 -> 5287 | H34: =F34/E34-1 -> 0.09459314392
B35: Юридические лица | E35: 1362 | F35: 1399 | G35: 37 | H35: 0.02716593245
B36: Нерезиденты | E36: 609 | F36: 628 | G36: 19 | H36: 0.03119868637
B37: Нерезиденты - физические лица | E37: 150 | F37: 160 | G37: 10 | H37: 0.06666666667
B38: Нерезиденты - юридические лица | E38: 459 | F38: 468 | G38: 9 | H38: 0.01960784314
B39: Клиенты, передавшие свои средства в ДУ | E39: 651 | F39: 721 | G39: 70 | H39: 0.1075268817
B40: Всего | E40: 58514 | F40: 63927 | G40: 5413 | H40: 0.09250777592
B44: Изменение количества уникальных клиентов - ретроспективные данные
B48: Количество уникальных клиентов в Системе торгов (по состоянию на последний день месяца) (ежегодная статистика): | H48: Таблица 1
B49: Группы клиентов | E49: 2009-12-31 | F49: 2010-12-31 | G49: 2011-12-31 | H49: 2012-12-31
B50: Физические лица | E50: 671475 | F50: 714295 | G50: 772175 | H50: 805549
B51: Юридические лица | E51: 16364 | F51: 17170 | G51: 16850 | H51: 17821
B52: Нерезиденты | E52: 3851 | F52: 4295 | G52: 5058 | H52: 5876
B53: Клиенты, передавшие свои средства в ДУ | E53: 4717 | F53: 5348 | G53: 5242 | H53: 5261
B54: Всего | E54: 696407 | F54: 741108 | G54: 799325 | H54: 834507
B82: Количество уникальных клиентов в Системе торгов (по состоянию на последний день месяца) (за последние 6 месяцев): | H82: Таблица 2
B83: Группы клиентов | C83: =EDATE(D83,-1) -> 2013-04-30 | D83: =EDATE(E83,-1) -> 2013-05-30 | E83: =EDATE(F83,-1) -> 2013-06-30 | F83: =EDATE(G83,-1) -> 2013-07-30 | G83: =EDATE(H83,-1) -> 2013-08-30 | H83: =EDATE(E11,1) -> 2013-09-30
B84: Физические лица | C84: 875529 | D84: 877243 | E84: 880422 | F84: 884194 | G84: 882528 | H84: 872709
B85: Юридические лица | C85: 18984 | D85: 18978 | E85: 19092 | F85: 19208 | G85: 19235 | H85: 19279
B86: Нерезиденты | C86: 6397 | D86: 6424 | E86: 6588 | F86: 6682 | G86: 6722 | H86: 6763
B87: Клиенты, передавшие свои средства в ДУ | C87: 5262 | D87: 5237 | E87: 5221 | F87: 5233 | G87: 5237 | H87: 5254
B88: Всего | C88: 906172 | D88: 907882 | E88: 911323 | F88: 915317 | G88: 913722 | H88: 904005
B124: Дополнительные показатели за | C124: 2013-09-30
H127: Таблица 1
B128: Участники торгов | G128: Абсолютные показатели
B129: Количество Участников торгов, имеющих зарегистрированных клиентов | G129: 763
B130: Количество Участников торгов, имеющих уникальных клиентов | G130: 763
B131: Количество Участников торгов, имеющих активных клиентов | G131: 468
B135: Списки ведущих операторов фондового рынка - клиенты Участников торгов за | F135: =C6 -> 2013-09-01
B138: Ведущие операторы рынка – число зарегистрированных клиентов | H138: Таблица 1
B139: Наименование Участника торгов | G139: Количество клиентов
B140: ВТБ 24 (ЗАО) | G140: 197869
B141: Сбербанк | G141: 181159
B142: ЗАО "ФИНАМ" | G142: 114726
B143: ФГ БКС | G143: 109243
B144: ОАО "АЛЬФА-БАНК" | G144: 60494
B145: ООО "АТОН" | G145: 43509
B146: ОАО "Брокерский дом "ОТКРЫТИЕ" | G146: 38781
B147: ГК "АЛОР" | G147: 29234
B148: КИТ Финанс (ООО) | G148: 20037
B149: ООО "Инвестиционная палата" | G149: 19462
B152: Ведущие операторы рынка – число активных клиентов | H152: Таблица 2
B153: Наименование Участника торгов | G153: Количество клиентов
B154: Сбербанк | G154: 12416
B155: ЗАО "ФИНАМ" | G155: 10462
B156: ФГ БКС | G156: 9645
B157: ВТБ 24 (ЗАО) | G157: 6211
B158: ОАО "АЛЬФА-БАНК" | G158: 3793
B159: ОАО "Брокерский дом "ОТКРЫТИЕ" | G159: 3302
B160: ООО "АТОН" | G160: 3265
B161: ГПБ (ОАО) | G161: 1664
B162: ГК "АЛОР" | G162: 1577
B163: ООО "НЭТТРЭЙДЕР" | G163: 1399
B166: Ведущие операторы рынка – объем клиентских операций | H166: Таблица 3
B167: Наименование Участника торгов | G167: Торговый оборот, руб.
B168: Сбербанк | G168: 821728229182
B169: ОАО "Брокерский дом "ОТКРЫТИЕ" | G169: 636252334273
B170: ИК "Ренессанс Капитал" | G170: 403036217526
B171: ФГ БКС | G171: 392140694513
B172: "НОМОС-БАНК" (ОАО) | G172: 387829190592
B173: ОАО "Промсвязьбанк" | G173: 289303770648
B174: ООО "БК РЕГИОН" | G174: 217045910704
B175: ОАО Банк "ОТКРЫТИЕ" | G175: 202959284573
B176: ООО "РОНИН" | G176: 189691938861
B177: ООО "ИК ВЕЛЕС Капитал" | G177: 182880251893

Sheet Октябрь2013
B2: Клиенты Участников торгов Фондовой биржи ММВБ
B3: 2013-10-31
B6: Динамика количества клиентов за | C6: =B3 -> 2013-10-31
B10: Количество зарегистрированных клиентов в Системе торгов (по состоянию на последний день месяца): | H10: Таблица 1
B11: Группы клиентов | E11: 2013-09-30 | F11: =EDATE(E11,1) -> 2013-10-30 | G11: Изменение (ед.) | H11: Изменение (%)
B12: Физические лица | E12: 1035902 | F12: 1040216 | G12: =F12-E12 -> 4314 | H12: =F12/E12-1 -> 0.004164486602
B13: Юридические лица | E13: 35495 | F13: 35566 | G13: =F13-E13 -> 71 | H13: =F13/E13-1 -> 0.00200028173
B14: Нерезиденты | E14: 13350 | F14: 13207 | G14: -143 | H14: -0.01071161049
B15: Нерезиденты - физические лица | E15: 2507 | F15: 2530 | G15: 23 | H15: 0.009174311927
B16: Нерезиденты - юридические лица | E16: 10843 | F16: 10677 | G16: -166 | H16: -0.01530941621
B17: Клиенты, передавшие свои средства в ДУ | E17: 12448 | F17: 12417 | G17: -31 | H17: -0.002490359897
B18: Всего | E18: 1097195 | F18: 1101406 | G18: 4211 | H18: 0.003837968638
B21: Количество уникальных клиентов в Системе торгов (по состоянию на последний день месяца): | H21: Таблица 2
B22: Группы клиентов | E22: =E11 -> 2013-09-30 | F22: =F11 -> 2013-10-30 | G22: Изменение (ед.) | H22: Изменение (%)
B23: Физические лица | E23: 872709 | F23: 876196 | G23: =F23-E23 -> 3487 | H23: =F23/E23-1 -> 0.003995604491
B24: Юридические лица | E24: 19279 | F24: 19352 | G24: =F24-E24 -> 73 | H24: =F24/E24-1 -> 0.003786503449
B25: Нерезиденты | E25: 6763 | F25: 6810 | G25: 47 | H25: 0.006949578589
B26: Нерезиденты - физические лица | E26: 2444 | F26: 2483 | G26: 39 | H26: 0.01595744681
B27: Нерезиденты - юридические лица | E27: 4319 | F27: 4327 | G27: 8 | H27: 0.001852280621
B28: Клиенты, передавшие свои средства в ДУ | E28: 5254 | F28: 5157 | G28: -97 | H28: -0.0184621241
B29: Всего | E29: =SUM(E23,E24,E25,E28) -> 904005 | F29: =F23+F24+F25+F28 -> 907515 | G29: 3510 | H29: 0.003882721888
B32: Количество активных клиентов в Системе торгов (совершивших в течение месяца хотя бы одну сделку): | H32: Таблица 3
B33: Группы клиентов | E33: =EDATE(C6,-1) -> 2013-09-30 | F33: =EDATE(E33,1) -> 2013-10-30 | G33: Изменение (ед.) | H33: Изменение (%)
B34: Физические лица | E34: 61179 | F34: 60527 | G34: =F34-E34 -> -652 | H34: =F34/E34-1 -> -0.01065725167
B35: Юридические лица | E35: 1399 | F35: 1453 | G35: 54 | H35: 0.03859899929
B36: Нерезиденты | E36: 628 | F36: 632 | G36: 4 | H36: 0.006369426752
B37: Нерезиденты - физические лица | E37: 160 | F37: 163 | G37: 3 | H37: 0.01875
B38: Нерезиденты - юридические лица | E38: 468 | F38: 469 | G38: 1 | H38: 0.002136752137
B39: Клиенты, передавшие свои средства в ДУ | E39: 721 | F39: 816 | G39: 95 | H39: 0.1317614424
B40: Всего | E40: 63927 | F40: 63428 | G40: -499 | H40: -0.007805778466
B44: Изменение количества уникальных клиентов - ретроспективные данные
B48: Количество уникальных клиентов в Системе торгов (по состоянию на последний день месяца) (ежегодная статистика): | H48: Таблица 1
B49: Группы клиентов | E49: 2009-12-31 | F49: 2010-12-31 | G49: 2011-12-31 | H49: 2012-12-31
B50: Физические лица | E50: 671475 | F50: 714295 | G50: 772175 | H50: 805549
B51: Юридические лица | E51: 16364 | F51: 17170 | G51: 16850 | H51: 17821
B52: Нерезиденты | E52: 3851 | F52: 4295 | G52: 5058 | H52: 5876
B53: Клиенты, передавшие свои средства в ДУ | E53: 4717 | F53: 5348 | G53: 5242 | H53: 5261
B54: Всего | E54: 696407 | F54: 741108 | G54: 799325 | H54: 834507
B82: Количество уникальных клиентов в Системе торгов (по состоянию на последний день месяца) (за последние 6 месяцев): | H82: Таблица 2
B83: Группы клиентов | C83: =EDATE(D83,-1) -> 2013-05-30 | D83: =EDATE(E83,-1) -> 2013-06-30 | E83: =EDATE(F83,-1) -> 2013-07-30 | F83: =EDATE(G83,-1) -> 2013-08-30 | G83: =EDATE(H83,-1) -> 2013-09-30 | H83: =EDATE(E11,1) -> 2013-10-30
B84: Физические лица | C84: 877243 | D84: 880422 | E84: 884194 | F84: 882528 | G84: 872709 | H84: 876196
B85: Юридические лица | C85: 18978 | D85: 19092 | E85: 19208 | F85: 19235 | G85: 19279 | H85: 19352
B86: Нерезиденты | C86: 6424 | D86: 6588 | E86: 6682 | F86: 6722 | G86: 6763 | H86: 6810
B87: Клиенты, передавшие свои средства в ДУ | C87: 5237 | D87: 5221 | E87: 5233 | F87: 5237 | G87: 5254 | H87: 5157
B88: Всего | C88: 907882 | D88: 911323 | E88: 915317 | F88: 913722 | G88: 904005 | H88: 907515
B124: Дополнительные показатели за | C124: 2013-10-31
H127: Таблица 1
B128: Участники торгов | G128: Абсолютные показатели
B129: Количество Участников торгов, имеющих зарегистрированных клиентов | G129: 763
B130: Количество Участников торгов, имеющих уникальных клиентов | G130: 763
B131: Количество Участников торгов, имеющих активных клиентов | G131: 463
B135: Списки ведущих операторов фондового рынка - клиенты Участников торгов за | F135: =C6 -> 2013-10-31
B138: Ведущие операторы рынка – число зарегистрированных клиентов | H138: Таблица 1
B139: (по общему количеству уникальных клиентов всех типов, зарегистрированных в системе торгов биржи, в том числе в течение месяца)
B140: Наименование Участника торгов | G140: Количество клиентов
B141: ВТБ 24 (ЗАО) | G141: 198882
B142: Сбербанк | G142: 181587
B143: ЗАО "ФИНАМ" | G143: 115202
B144: ФГ БКС | G144: 109810
B145: ОАО "АЛЬФА-БАНК" | G145: 60572
B146: ООО "АТОН" | G146: 43681
B147: ОАО "Брокерский дом "ОТКРЫТИЕ" | G147: 39366
B148: ГК «АЛОР» | G148: 29301
B149: КИТ Финанс (ООО) | G149: 20133
B150: ООО "Инвестиционная палата" | G150: 19462
B153: Ведущие операторы рынка – число активных клиентов | H153: Таблица 2
B154: (по количеству уникальных клиентов, совершивших хотя бы одну сделку за месяц)
B155: Наименование Участника торгов | G155: Количество клиентов
B156: Сбербанк | G156: 11434
B157: ЗАО "ФИНАМ" | G157: 10731
B158: ФГ БКС | G158: 9535
B159: ВТБ 24 (ЗАО) | G159: 6219
B160: ОАО "АЛЬФА-БАНК" | G160: 3888
B161: ОАО "Брокерский дом "ОТКРЫТИЕ" | G161: 3400
B162: ООО "АТОН" | G162: 3165
B163: ГПБ (ОАО) | G163: 1725
B164: ГК «АЛОР» | G164: 1641
B165: ООО "НЭТТРЭЙДЕР" | G165: 1440
B168: Ведущие операторы рынка – объем клиентских операций | H168: Таблица 3
B169: (по стоимостному объему сделок, заключенных в интересах клиентов за месяц)
B170: Наименование Участника торгов | G170: Торговый оборот, руб.
B171: ОАО "Брокерский дом "ОТКРЫТИЕ" | G171: 967698241763
B172: Сбербанк | G172: 785647049130
B173: ФГ БКС | G173: 709389010547
B174: ЗАО "ФИНАМ" | G174: 448948828873
B175: ИК «Ренессанс Капитал» | G175: 445955965924
B176: "НОМОС-БАНК" (ОАО) | G176: 329141391825
B177: ООО "РОНИН" | G177: 295789468666
B178: ООО "БК РЕГИОН" | G178: 288143163217
B179: ОАО "Промсвязьбанк" | G179: 255438322771
B180: ОАО Банк "ОТКРЫТИЕ" | G180: 203376318882

Sheet Ноябрь2013
B2: Клиенты Участников торгов Фондовой биржи ММВБ
B3: 2013-11-30
B6: Динамика количества клиентов за | C6: =B3 -> 2013-11-30
B10: Количество зарегистрированных клиентов в Системе торгов (по состоянию на последний день месяца): | H10: Таблица 1
B11: Группы клиентов | E11: 2013-10-31 | F11: =EDATE(E11,1) -> 2013-11-30 | G11: Изменение (ед.) | H11: Изменение (%)
B12: Физические лица | E12: 1035902 | F12: 1044064 | G12: =F12-E12 -> 8162 | H12: =F12/E12-1 -> 0.007879123701
B13: Юридические лица | E13: 35495 | F13: 35686 | G13: =F13-E13 -> 191 | H13: =F13/E13-1 -> 0.005381039583
B14: Нерезиденты | E14: 13350 | F14: 13263 | G14: -87 | H14: -0.006516853933
B15: Нерезиденты - физические лица | E15: 2507 | F15: 2547 | G15: 40 | H15: 0.01595532509
B16: Нерезиденты - юридические лица | E16: 10843 | F16: 10716 | G16: -127 | H16: -0.01171262566
B17: Клиенты, передавшие свои средства в ДУ | E17: 12448 | F17: 12418 | G17: -30 | H17: -0.002410025707
B18: Всего | E18: 1097195 | F18: 1105431 | G18: 8236 | H18: 0.007506414083
B21: Количество уникальных клиентов в Системе торгов (по состоянию на последний день месяца): | H21: Таблица 2
B22: Группы клиентов | E22: =E11 -> 2013-10-31 | F22: =F11 -> 2013-11-30 | G22: Изменение (ед.) | H22: Изменение (%)
B23: Физические лица | E23: 876196 | F23: 878908 | G23: =F23-E23 -> 2712 | H23: =F23/E23-1 -> 0.003095197878
B24: Юридические лица | E24: 19352 | F24: 19435 | G24: =F24-E24 -> 83 | H24: =F24/E24-1 -> 0.004288962381
B25: Нерезиденты | E25: 6810 | F25: 6874 | G25: 64 | H25: 0.0093979442
B26: Нерезиденты - физические лица | E26: 2483 | F26: 2507 | G26: 24 | H26: 0.009665726943
B27: Нерезиденты - юридические лица | E27: 4327 | F27: 4367 | G27: 40 | H27: 0.009244280102
B28: Клиенты, передавшие свои средства в ДУ | E28: 5157 | F28: 5205 | G28: 48 | H28: 0.009307737056
B29: Всего | E29: =E23+E24+E25+E28 -> 907515 | F29: =F23+F24+F25+F28 -> 910422 | G29: 2907 | H29: 0.003203252839
B32: Количество активных клиентов в Системе торгов (совершивших в течение месяца хотя бы одну сделку): | H32: Таблица 3
B33: Группы клиентов | E33: =EDATE(C6,-1) -> 2013-10-30 | F33: =EDATE(E33,1) -> 2013-11-30 | G33: Изменение (ед.) | H33: Изменение (%)
B34: Физические лица | E34: 61179 | F34: 56125 | G34: =F34-E34 -> -5054 | H34: =F34/E34-1 -> -0.08261004593
B35: Юридические лица | E35: 1399 | F35: 1420 | G35: 21 | H35: 0.01501072194
B36: Нерезиденты | E36: 628 | F36: 622 | G36: -6 | H36: -0.009554140127
B37: Нерезиденты - физические лица | E37: 160 | F37: 163 | G37: 3 | H37: 0.01875
B38: Нерезиденты - юридические лица | E38: 468 | F38: 459 | G38: -9 | H38: -0.01923076923
B39: Клиенты, передавшие свои средства в ДУ | E39: 721 | F39: 832 | G39: 111 | H39: 0.1539528433
B40: Всего | E40: 63927 | F40: 58999 | G40: -4928 | H40: -0.07708792842
B44: Изменение количества уникальных клиентов - ретроспективные данные
B48: Количество уникальных клиентов в Системе торгов (по состоянию на последний день месяца) (ежегодная статистика): | H48: Таблица 1
B49: Группы клиентов | E49: 2009-12-31 | F49: 2010-12-31 | G49: 2011-12-31 | H49: 2012-12-31
B50: Физические лица | E50: 671475 | F50: 714295 | G50: 772175 | H50: 805549
B51: Юридические лица | E51: 16364 | F51: 17170 | G51: 16850 | H51: 17821
B52: Нерезиденты | E52: 3851 | F52: 4295 | G52: 5058 | H52: 5876
B53: Клиенты, передавшие свои средства в ДУ | E53: 4717 | F53: 5348 | G53: 5242 | H53: 5261
B54: Всего | E54: 696407 | F54: 741108 | G54: 799325 | H54: 834507
B82: Количество уникальных клиентов в Системе торгов (по состоянию на последний день месяца) (за последние 6 месяцев): | H82: Таблица 2
B83: Группы клиентов | C83: =EDATE(D83,-1) -> 2013-06-30 | D83: =EDATE(E83,-1) -> 2013-07-30 | E83: =EDATE(F83,-1) -> 2013-08-30 | F83: =EDATE(G83,-1) -> 2013-09-30 | G83: =EDATE(H83,-1) -> 2013-10-30 | H83: =EDATE(E11,1) -> 2013-11-30
B84: Физические лица | C84: 880422 | D84: 884194 | E84: 882528 | F84: 872709 | G84: 876196 | H84: 878908
B85: Юридические лица | C85: 19092 | D85: 19208 | E85: 19235 | F85: 19279 | G85: 19352 | H85: 19435
B86: Нерезиденты | C86: 6588 | D86: 6682 | E86: 6722 | F86: 6763 | G86: 6810 | H86: 6874
B87: Клиенты, передавшие свои средства в ДУ | C87: 5221 | D87: 5233 | E87: 5237 | F87: 5254 | G87: 5157 | H87: 5205
B88: Всего | C88: 911323 | D88: 915317 | E88: 913722 | F88: 904005 | G88: 907515 | H88: 910422
B124: Дополнительные показатели за | C124: 2013-11-30
H127: Таблица 1
B128: Участники торгов | G128: Абсолютные показатели
B129: Количество Участников торгов, имеющих зарегистрированных клиентов | G129: 732
B130: Количество Участников торгов, имеющих уникальных клиентов | G130: 732
B131: Количество Участников торгов, имеющих активных клиентов | G131: 406
B135: Списки ведущих операторов фондового рынка - клиенты Участников торгов за | F135: =C6 -> 2013-11-30
B138: Ведущие операторы рынка – число зарегистрированных клиентов | H138: Таблица 1
B139: (по общему количеству уникальных клиентов всех типов, зарегистрированных в системе торгов биржи, в том числе в течение месяца)
B140: Наименование Участника торгов | G140: Количество клиентов
B141: ВТБ 24 (ЗАО) | G141: 199892
B142: Сбербанк | G142: 181167
B143: ЗАО "ФИНАМ" | G143: 115560
B144: ФГ БКС | G144: 110367
B145: ОАО "АЛЬФА-БАНК" | G145: 60601
B146: ООО "АТОН" | G146: 43809
B147: ОАО "Брокерский дом "ОТКРЫТИЕ" | G147: 39955
B148: ГК «АЛОР» | G148: 29380
B149: КИТ Финанс (ООО) | G149: 20210
B150: ООО "Инвестиционная палата" | G150: 19462
B153: Ведущие операторы рынка – число активных клиентов | H153: Таблица 2
B154: (по количеству уникальных клиентов, совершивших хотя бы одну сделку за месяц)
B155: Наименование Участника торгов | G155: Количество клиентов
B156: Сбербанк | G156: 10308
B157: ЗАО "ФИНАМ" | G157: 9590
B158: ФГ БКС | G158: 8795
B159: ВТБ 24 (ЗАО) | G159: 5939
B160: ОАО "АЛЬФА-БАНК" | G160: 3674
B161: ОАО "Брокерский дом "ОТКРЫТИЕ" | G161: 3451
B162: ООО "АТОН" | G162: 2892
B163: ГК «АЛОР» | G163: 1624
B164: ГПБ (ОАО) | G164: 1556
B165: КИТ Финанс (ООО) | G165: 1317
B168: Ведущие операторы рынка – объем клиентских операций | H168: Таблица 3
B169: (по стоимостному объему сделок, заключенных в интересах клиентов за месяц)
B170: Наименование Участника торгов | G170: Торговый оборот, руб.
B171: ОАО "Брокерский дом "ОТКРЫТИЕ" | G171: 840444536345
B172: ФГ БКС | G172: 725881157049
B173: Сбербанк | G173: 637583574904
B174: ИК «Ренессанс Капитал» | G174: 343485123034
B175: ЗАО "ФИНАМ" | G175: 278491080907
B176: "НОМОС-БАНК" (ОАО) | G176: 277945248739
B177: ООО "БК РЕГИОН" | G177: 241455277945
B178: ОАО "Промсвязьбанк" | G178: 235330673678
B179: ООО "ИК ВЕЛЕС Капитал" | G179: 195694915389
B180: ООО "РОНИН" | G180: 177813795118

Sheet Декабрь2013
B2: Клиенты Участников торгов Фондовой биржи ММВБ
B3: 2013-12-31
B6: Динамика количества клиентов за | C6: =B3 -> 2013-12-31
B10: Количество зарегистрированных клиентов в Системе торгов (по состоянию на последний день месяца): | H10: Таблица 1
B11: Группы клиентов | E11: 2013-11-30 | F11: =EDATE(E11,1) -> 2013-12-30 | G11: Изменение (ед.) | H11: Изменение (%)
B12: Физические лица | E12: 1044064 | F12: 1043653 | G12: =F12-E12 -> -411 | H12: =F12/E12-1 -> -0.0003936540289
B13: Юридические лица | E13: 35686 | F13: 35574 | G13: =F13-E13 -> -112 | H13: =F13/E13-1 -> -0.003138485681
B14: Нерезиденты | E14: 13263 | F14: 13307 | G14: 44 | H14: 0.003317499812
B15: Нерезиденты - физические лица | E15: 2547 | F15: 2564 | G15: 17 | H15: 0.006674519042
B16: Нерезиденты - юридические лица | E16: 10716 | F16: 10743 | G16: 27 | H16: 0.002519596865
B17: Клиенты, передавшие свои средства в ДУ | E17: 12418 | F17: 12458 | G17: 40 | H17: 0.003221130617
B18: Всего | E18: 1105431 | F18: 1104992 | G18: -439 | H18: -0.0003971301691
B21: Количество уникальных клиентов в Системе торгов (по состоянию на последний день месяца): | H21: Таблица 2
B22: Группы клиентов | E22: =E11 -> 2013-11-30 | F22: =F11 -> 2013-12-30 | G22: Изменение (ед.) | H22: Изменение (%)
B23: Физические лица | E23: 878908 | F23: 881844 | G23: =F23-E23 -> 2936 | H23: =F23/E23-1 -> 0.003340508904
B24: Юридические лица | E24: 19435 | F24: 19539 | G24: =F24-E24 -> 104 | H24: =F24/E24-1 -> 0.005351170569
B25: Нерезиденты | E25: 6874 | F25: 6957 | G25: 83 | H25: 0.01207448356
B26: Нерезиденты - физические лица | E26: 2507 | F26: 2553 | G26: 46 | H26: 0.01834862385
B27: Нерезиденты - юридические лица | E27: 4367 | F27: 4404 | G27: 37 | H27: 0.008472635677
B28: Клиенты, передавшие свои средства в ДУ | E28: 5205 | F28: 5182 | G28: -23 | H28: -0.00441882805
B29: Всего | E29: =E23+E24+E25+E28 -> 910422 | F29: =F23+F24+F25+F28 -> 913522 | G29: 3100 | H29: 0.003405014378
B32: Количество активных клиентов в Системе торгов (совершивших в течение месяца хотя бы одну сделку): | H32: Таблица 3
B33: Группы клиентов | E33: =EDATE(C6,-1) -> 2013-11-30 | F33: =EDATE(E33,1) -> 2013-12-30 | G33: Изменение (ед.) | H33: Изменение (%)
B34: Физические лица | E34: 56125 | F34: 57875 | G34: =F34-E34 -> 1750 | H34: =F34/E34-1 -> 0.03118040089
B35: Юридические лица | E35: 1420 | F35: 1511 | G35: 91 | H35: 0.06408450704
B36: Нерезиденты | E36: 622 | F36: 638 | G36: 16 | H36: 0.02572347267
B37: Нерезиденты - физические лица | E37: 163 | F37: 156 | G37: -7 | H37: -0.04294478528
B38: Нерезиденты - юридические лица | E38: 459 | F38: 482 | G38: 23 | H38: 0.05010893246
B39: Клиенты, передавшие свои средства в ДУ | E39: 832 | F39: 826 | G39: -6 | H39: -0.007211538462
B40: Всего | E40: 58999 | F40: 60850 | G40: 1851 | H40: 0.03137341311
B44: Изменение количества уникальных клиентов - ретроспективные данные
B48: Количество уникальных клиентов в Системе торгов (по состоянию на последний день месяца) (ежегодная статистика): | H48: Таблица 1
B49: Группы клиентов | E49: 2009-12-31 | F49: 2010-12-31 | G49: 2011-12-31 | H49: 2012-12-31 | I49: 2013-12-31
B50: Физические лица | E50: 671475 | F50: 714295 | G50: 772175 | H50: 805549 | I50: 881844
B51: Юридические лица | E51: 16364 | F51: 17170 | G51: 16850 | H51: 17821 | I51: 19539
B52: Нерезиденты | E52: 3851 | F52: 4295 | G52: 5058 | H52: 5876 | I52: 6957
B53: Клиенты, передавшие свои средства в ДУ | E53: 4717 | F53: 5348 | G53: 5242 | H53: 5261 | I53: 5182
B54: Всего | E54: 696407 | F54: 741108 | G54: 799325 | H54: 834507 | I54: 913522
B82: Количество уникальных клиентов в Системе торгов (по состоянию на последний день месяца) (за последние 6 месяцев): | H82: Таблица 2
B83: Группы клиентов | C83: =EDATE(D83,-1) -> 2013-07-30 | D83: =EDATE(E83,-1) -> 2013-08-30 | E83: =EDATE(F83,-1) -> 2013-09-30 | F83: =EDATE(G83,-1) -> 2013-10-30 | G83: =EDATE(H83,-1) -> 2013-11-30 | H83: =EDATE(E11,1) -> 2013-12-30
B84: Физические лица | C84: 884194 | D84: 882528 | E84: 872709 | F84: 876196 | G84: 878908 | H84: 881844
B85: Юридические лица | C85: 19208 | D85: 19235 | E85: 19279 | F85: 19352 | G85: 19435 | H85: 19539
B86: Нерезиденты | C86: 6682 | D86: 6722 | E86: 6763 | F86: 6810 | G86: 6874 | H86: 6957
B87: Клиенты, передавшие свои средства в ДУ | C87: 5233 | D87: 5237 | E87: 5254 | F87: 5157 | G87: 5205 | H87: 5182
B88: Всего | C88: 915317 | D88: 913722 | E88: 904005 | F88: 907515 | G88: 910422 | H88: 913522
B124: Дополнительные показатели за | C124: 2013-12-31
H127: Таблица 1
B128: Участники торгов | G128: Абсолютные показатели
B129: Количество Участников торгов, имеющих зарегистрированных клиентов | G129: 766
B130: Количество Участников торгов, имеющих уникальных клиентов | G130: 766
B131: Количество Участников торгов, имеющих активных клиентов | G131: 474
B135: Списки ведущих операторов фондового рынка - клиенты Участников торгов за | F135: =C6 -> 2013-12-31
B138: Ведущие операторы рынка – число зарегистрированных клиентов | H138: Таблица 1
B139: (по общему количеству уникальных клиентов всех типов, зарегистрированных в системе торгов биржи, в том числе в течение месяца)
B140: Наименование Участника торгов | G140: Количество клиентов
B141: ВТБ 24 (ЗАО) | G141: 201298
B142: Сбербанк | G142: 181208
B143: ЗАО "ФИНАМ" | G143: 115929
B144: ФГ БКС | G144: 110865
B145: ОАО "АЛЬФА-БАНК" | G145: 60576
B146: ООО "АТОН" | G146: 43927
B147: ОАО "Брокерский дом "ОТКРЫТИЕ" | G147: 40601
B148: ГК «АЛОР» | G148: 29438
B149: КИТ Финанс (ООО) | G149: 20309
B150: ООО "Инвестиционная палата" | G150: 19462
B153: Ведущие операторы рынка – число активных клиентов | H153: Таблица 2
B154: (по количеству уникальных клиентов, совершивших хотя бы одну сделку за месяц)
B155: Наименование Участника торгов | G155: Количество клиентов
B156: Сбербанк | G156: 11564
B157: ЗАО "ФИНАМ" | G157: 9868
B158: ФГ БКС | G158: 8997
B159: ВТБ 24 (ЗАО) | G159: 6145
B160: ОАО "АЛЬФА-БАНК" | G160: 3625
B161: ОАО "Брокерский дом "ОТКРЫТИЕ" | G161: 3437
B162: ООО "АТОН" | G162: 3025
B163: ГПБ (ОАО) | G163: 1609
B164: ГК «АЛОР» | G164: 1561
B165: КИТ Финанс (ООО) | G165: 1321
B168: Ведущие операторы рынка – объем клиентских операций | H168: Таблица 3
B169: (по стоимостному объему сделок, заключенных в интересах клиентов за месяц)
B170: Наименование Участника торгов | G170: Торговый оборот, руб.
B171: Сбербанк | G171: 1058435395118
B172: ФГ БКС | G172: 848038233061
B173: ОАО "Брокерский дом "ОТКРЫТИЕ" | G173: 839720696385
B174: ИК «Ренессанс Капитал» | G174: 361219301656
B175: ЗАО "ФИНАМ" | G175: 325125951845
B176: "НОМОС-БАНК" (ОАО) | G176: 311817780261
B177: ОАО "Промсвязьбанк" | G177: 298059776317
B178: ООО "БК РЕГИОН" | G178: 253228730973
B179: ОАО Банк "ОТКРЫТИЕ" | G179: 229577305465
B180: ООО "РОНИН" | G180: 223964090122
